Workbook

Sheet Consignes

Sheet ResumeBatiment (hidden)
A1: Batiment | B1: (Tous)
B3: Étiquettes de colonnes
A4: Valeurs | B4: 2010 | C4: 2011 | D4: 2012 | E4: 2013 | F4: 2014 | G4: 2015 | H4: 2016 | I4: 2017
A5: Somme de Electricité | B5: 318905.996 | C5: 312719.994 | D5: 317661.99 | E5: 316139.992 | F5: 0 | G5: 0 | H5: 0 | I5: 0
A6: Somme de Electricité Heures pleines | B6: 0 | C6: 0 | D6: 0 | E6: 0 | F6: 0 | G6: 0 | H6: 0 | I6: 0
A7: Somme de Electricité Heures creuses | B7: 0 | C7: 0 | D7: 0 | E7: 0 | F7: 0 | G7: 0 | H7: 0 | I7: 0
A8: Somme de Cons spéc d'électricité | B8: 244.0846846 | C8: 239.3500376 | D8: 243.132548 | E8: 241.9676377 | F8: 0 | G8: 0 | H8: 0 | I8: 0
A9: Somme de Cons spéc d'électricité moy du secteur | B9: 100 | C9: 100 | D9: 100 | E9: 100 | F9: 100 | G9: 100 | H9: 100 | I9: 100
A10: Somme de Combustible | B10: 1864875.6 | C10: 1631164.21 | D10: 1787578.8 | E10: 1796355.96 | F10: 0 | G10: 0 | H10: 0 | I10: 0

Sheet Analyse graphique
A12: Graphiques ELECTRICITE
A113: Graphiques COMBUSTIBLES
A267: Graphiques EAU
A269: Il est toujours bon de se demander si les fluctuations sont justifiées ou si elles proviennent d'une anomalie dont il faut rechercher la cause. Pour ce faire un relevé mensuel sera plus parlant et permetttra de mieux cibler la dérive.

Sheet Encodage
A1: Encodage des données et des factures
A3: Année du 1er encodage: | D3: 2013
A4: Choix de degrés jours: | D4: 16,5/16,5
A5: Secteur général:
A6: Nombre de bâtiments: | D6: 12
B8: Aller à ---> | C8: =A12 -> 2013 | D8: =C8+1 -> 2014 | E8: 2015 | F8: =E8+1 -> 2016 | G8: =F8+1 -> 2017 | H8: =G8+1 -> 2018 | I8: =H8+1 -> 2019 | J8: =I8+1 -> 2020
B10: Nom du bâtiment | C10: Surface chauffée | D10: Affectation du bâtiment | E10: Horaires d'occupa-tion du bâtiment | F10: Usage énergétique spécifique | G10: Energies renouvelables | H10: Electricité (mono-horaire) | I10: Electricité Heures pleines | J10: Electricité Heures creuses | K10: Coût total électricité | L10: =Paramètres!$A$3 -> gaz naturel | M10: =Paramètres!$A$4 -> gasoil | N10: =Paramètres!$A$5 -> propane | O10: =Paramètres!$A$6 -> pellets | P10: =Paramètres!$A$7 -> Autres | Q10: Coût total combustible | R10: Eau | S10: Coût total Eau | T10: Evol Conso Eau v/v année précédente | U10: Electricité (total) | V10: Elec Proportion Heure Creuse | W10: Evol Conso Elec v/v année précédente | X10: Cons spéc d'électricité | Y10: Cons spéc d'électricité moy du secteur (2012) | Z10: Combustible (total) | AA10: % de norma-lisation | AB10: Combustible (total) normalisé | AC10: Cons spéc normalisée de combustible | AD10: Evol Cons spéc normalisée de combustible v/v année précédente | AE10: Cons spéc chauffage moy du secteur (2012) | AF10: Evol Conso spéc normalisée de combustible v/v année du 1er encodage | AG10: Potentiel d'économie de combustible
B11: Sélectionner les bâtiments | C11: m² | H11: kWh | I11: kWh | J11: kWh | K11: euro | L11: =Paramètres!$B$3 -> kWhs | M11: =Paramètres!$B$4 -> litre | N11: =Paramètres!$B$5 -> m³ | O11: =Paramètres!$B$6 -> kg | P11: =Paramètres!$B$7 -> kWh | Q11: euro | R11: m³ | S11: euro | T11: % | U11: kWh | V11: % | W11: % | X11: kWh/m² | Y11: kWh/m² | Z11: kWhi | AA11: % | AB11: kWhi | AC11: kWhi/m² | AD11: % | AE11: kWhi/m² | AF11: % | AG11: kWh²/m²
A12: =D3 -> 2013
A13: =A12 -> 2013 | B13: Bâtiment 1 | D13: A sélectionner dans la liste déroulante | F13: à encoder | G13: à encoder | U13: =IF(H13<>0,H13,I13+J13) -> 0 | V13: =IFERROR(J13/U13,"NA") -> NA | W13: =IF(U13=0,0,U13/U13-1) -> 0 | X13: =IFERROR(U13/C13,0) -> 0 | Y13: =VLOOKUP(D13,Paramètres!$A$24:$D$36,3) -> 100 | Z13: =L13*Paramètres!$C$3+M13*Paramètres!$C$4+Encodage!N13*Paramètres!$C$5+Encodage!O13*Paramètres!$C$6+P13*Paramètres!$C$7 -> 0 | AA13: =VLOOKUP(D13,Paramètres!$A$24:$E$36,5) -> 0.85 | AB13: =IFERROR(Z13*(1-AA13)+(Z13*AA13*DJ!$D$2/VLOOKUP(Encodage!A13,DJ!$A$2:$D$14,4)),0) -> 0 | AC13: =IFERROR(AB13/C13,0) -> 0 | AE13: =VLOOKUP(D13,Paramètres!$A$24:$D$36,2) -> 100 | AF13: =IFERROR(AC13/AC$13,"") ->  | AG13: =AB13*AC13 -> 0
A14: =A12 -> 2013 | B14: Bâtiment 2 | D14: A sélectionner dans la liste déroulante | F14: à encoder | G14: à encoder | U14: 0 | V14: NA | W14: =IF(U14=0,0,U14/U14-1) -> 0 | X14: 0 | Y14: =VLOOKUP(D14,Paramètres!$A$24:$D$36,3) -> 100 | Z14: =L14*Paramètres!$C$3+M14*Paramètres!$C$4+Encodage!N14*Paramètres!$C$5+Encodage!O14*Paramètres!$C$6+P14*Paramètres!$C$7 -> 0 | AA14: =VLOOKUP(D14,Paramètres!$A$24:$E$36,5) -> 0.85 | AB14: =IFERROR(Z14*(1-AA14)+(Z14*AA14*DJ!$D$2/VLOOKUP(Encodage!A14,DJ!$A$2:$D$14,4)),0) -> 0 | AC14: 0 | AE14: =VLOOKUP(D14,Paramètres!$A$24:$D$36,2) -> 100 | AG14: 0
A15: =A14 -> 2013 | B15: Bâtiment 3 | D15: A sélectionner dans la liste déroulante | F15: à encoder | G15: à encoder | U15: 0 | V15: NA | W15: 0 | X15: 0 | Y15: =VLOOKUP(D15,Paramètres!$A$24:$D$36,3) -> 100 | Z15: =L15*Paramètres!$C$3+M15*Paramètres!$C$4+Encodage!N15*Paramètres!$C$5+Encodage!O15*Paramètres!$C$6+P15*Paramètres!$C$7 -> 0 | AA15: =VLOOKUP(D15,Paramètres!$A$24:$E$36,5) -> 0.85 | AB15: =IFERROR(Z15*(1-AA15)+(Z15*AA15*DJ!$D$2/VLOOKUP(Encodage!A15,DJ!$A$2:$D$14,4)),0) -> 0 | AC15: 0 | AE15: =VLOOKUP(D15,Paramètres!$A$24:$D$36,2) -> 100 | AG15: 0
A16: 2013 | B16: Bâtiment 4 | D16: A sélectionner dans la liste déroulante | F16: à encoder | G16: à encoder | U16: 0 | V16: NA | W16: 0 | X16: 0 | Y16: =VLOOKUP(D16,Paramètres!$A$24:$D$36,3) -> 100 | Z16: =L16*Paramètres!$C$3+M16*Paramètres!$C$4+Encodage!N16*Paramètres!$C$5+Encodage!O16*Paramètres!$C$6+P16*Paramètres!$C$7 -> 0 | AA16: =VLOOKUP(D16,Paramètres!$A$24:$E$36,5) -> 0.85 | AB16: =IFERROR(Z16*(1-AA16)+(Z16*AA16*DJ!$D$2/VLOOKUP(Encodage!A16,DJ!$A$2:$D$14,4)),0) -> 0 | AC16: 0 | AE16: =VLOOKUP(D16,Paramètres!$A$24:$D$36,2) -> 100 | AG16: 0
A17: 2013 | B17: Bâtiment 5 | D17: A sélectionner dans la liste déroulante | F17: à encoder | G17: à encoder | U17: 0 | V17: NA | W17: 0 | X17: 0 | Y17: =VLOOKUP(D17,Paramètres!$A$24:$D$36,3) -> 100 | Z17: =L17*Paramètres!$C$3+M17*Paramètres!$C$4+Encodage!N17*Paramètres!$C$5+Encodage!O17*Paramètres!$C$6+P17*Paramètres!$C$7 -> 0 | AA17: =VLOOKUP(D17,Paramètres!$A$24:$E$36,5) -> 0.85 | AB17: =IFERROR(Z17*(1-AA17)+(Z17*AA17*DJ!$D$2/VLOOKUP(Encodage!A17,DJ!$A$2:$D$14,4)),0) -> 0 | AC17: 0 | AE17: =VLOOKUP(D17,Paramètres!$A$24:$D$36,2) -> 100 | AG17: 0
A18: 2013 | B18: Bâtiment 6 | D18: A sélectionner dans la liste déroulante | F18: à encoder | G18: à encoder | U18: 0 | V18: NA | W18: 0 | X18: 0 | Y18: =VLOOKUP(D18,Paramètres!$A$24:$D$36,3) -> 100 | Z18: =L18*Paramètres!$C$3+M18*Paramètres!$C$4+Encodage!N18*Paramètres!$C$5+Encodage!O18*Paramètres!$C$6+P18*Paramètres!$C$7 -> 0 | AA18: =VLOOKUP(D18,Paramètres!$A$24:$E$36,5) -> 0.85 | AB18: =IFERROR(Z18*(1-AA18)+(Z18*AA18*DJ!$D$2/VLOOKUP(Encodage!A18,DJ!$A$2:$D$14,4)),0) -> 0 | AC18: 0 | AE18: =VLOOKUP(D18,Paramètres!$A$24:$D$36,2) -> 100 | AG18: 0
A19: 2013 | B19: Bâtiment 7 | D19: A sélectionner dans la liste déroulante | F19: à encoder | G19: à encoder | U19: 0 | V19: NA | W19: 0 | X19: 0 | Y19: =VLOOKUP(D19,Paramètres!$A$24:$D$36,3) -> 100 | Z19: =L19*Paramètres!$C$3+M19*Paramètres!$C$4+Encodage!N19*Paramètres!$C$5+Encodage!O19*Paramètres!$C$6+P19*Paramètres!$C$7 -> 0 | AA19: =VLOOKUP(D19,Paramètres!$A$24:$E$36,5) -> 0.85 | AB19: =IFERROR(Z19*(1-AA19)+(Z19*AA19*DJ!$D$2/VLOOKUP(Encodage!A19,DJ!$A$2:$D$14,4)),0) -> 0 | AC19: 0 | AE19: =VLOOKUP(D19,Paramètres!$A$24:$D$36,2) -> 100 | AG19: 0
A20: 2013 | B20: Bâtiment 8 | D20: A sélectionner dans la liste déroulante | F20: à encoder | G20: à encoder | U20: 0 | V20: NA | W20: 0 | X20: 0 | Y20: =VLOOKUP(D20,Paramètres!$A$24:$D$36,3) -> 100 | Z20: =L20*Paramètres!$C$3+M20*Paramètres!$C$4+Encodage!N20*Paramètres!$C$5+Encodage!O20*Paramètres!$C$6+P20*Paramètres!$C$7 -> 0 | AA20: =VLOOKUP(D20,Paramètres!$A$24:$E$36,5) -> 0.85 | AB20: =IFERROR(Z20*(1-AA20)+(Z20*AA20*DJ!$D$2/VLOOKUP(Encodage!A20,DJ!$A$2:$D$14,4)),0) -> 0 | AC20: 0 | AE20: =VLOOKUP(D20,Paramètres!$A$24:$D$36,2) -> 100 | AG20: 0
A21: 2013 | B21: Bâtiment 9 | D21: A sélectionner dans la liste déroulante | F21: à encoder | G21: à encoder | U21: 0 | V21: NA | W21: 0 | X21: 0 | Y21: =VLOOKUP(D21,Paramètres!$A$24:$D$36,3) -> 100 | Z21: =L21*Paramètres!$C$3+M21*Paramètres!$C$4+Encodage!N21*Paramètres!$C$5+Encodage!O21*Paramètres!$C$6+P21*Paramètres!$C$7 -> 0 | AA21: =VLOOKUP(D21,Paramètres!$A$24:$E$36,5) -> 0.85 | AB21: =IFERROR(Z21*(1-AA21)+(Z21*AA21*DJ!$D$2/VLOOKUP(Encodage!A21,DJ!$A$2:$D$14,4)),0) -> 0 | AC21: 0 | AE21: =VLOOKUP(D21,Paramètres!$A$24:$D$36,2) -> 100 | AG21: 0
A22: 2013 | B22: Bâtiment 10 | D22: A sélectionner dans la liste déroulante | F22: à encoder | G22: à encoder | U22: 0 | V22: NA | W22: 0 | X22: 0 | Y22: =VLOOKUP(D22,Paramètres!$A$24:$D$36,3) -> 100 | Z22: =L22*Paramètres!$C$3+M22*Paramètres!$C$4+Encodage!N22*Paramètres!$C$5+Encodage!O22*Paramètres!$C$6+P22*Paramètres!$C$7 -> 0 | AA22: =VLOOKUP(D22,Paramètres!$A$24:$E$36,5) -> 0.85 | AB22: =IFERROR(Z22*(1-AA22)+(Z22*AA22*DJ!$D$2/VLOOKUP(Encodage!A22,DJ!$A$2:$D$14,4)),0) -> 0 | AC22: 0 | AE22: =VLOOKUP(D22,Paramètres!$A$24:$D$36,2) -> 100 | AG22: 0
A23: 2013 | B23: Bâtiment 11 | D23: A sélectionner dans la liste déroulante | F23: à encoder | G23: à encoder | U23: 0 | V23: NA | W23: 0 | X23: 0 | Y23: =VLOOKUP(D23,Paramètres!$A$24:$D$36,3) -> 100 | Z23: =L23*Paramètres!$C$3+M23*Paramètres!$C$4+Encodage!N23*Paramètres!$C$5+Encodage!O23*Paramètres!$C$6+P23*Paramètres!$C$7 -> 0 | AA23: =VLOOKUP(D23,Paramètres!$A$24:$E$36,5) -> 0.85 | AB23: =IFERROR(Z23*(1-AA23)+(Z23*AA23*DJ!$D$2/VLOOKUP(Encodage!A23,DJ!$A$2:$D$14,4)),0) -> 0 | AC23: 0 | AE23: =VLOOKUP(D23,Paramètres!$A$24:$D$36,2) -> 100 | AG23: 0
A24: 2013 | B24: Bâtiment 12 | D24: A sélectionner dans la liste déroulante | F24: à encoder | G24: à encoder | U24: 0 | V24: NA | W24: =IF(U24=0,0,U24/U24-1) -> 0 | X24: 0 | Y24: =VLOOKUP(D24,Paramètres!$A$24:$D$36,3) -> 100 | Z24: =L24*Paramètres!$C$3+M24*Paramètres!$C$4+Encodage!N24*Paramètres!$C$5+Encodage!O24*Paramètres!$C$6+P24*Paramètres!$C$7 -> 0 | AA24: =VLOOKUP(D24,Paramètres!$A$24:$E$36,5) -> 0.85 | AB24: =IFERROR(Z24*(1-AA24)+(Z24*AA24*DJ!$D$2/VLOOKUP(Encodage!A24,DJ!$A$2:$D$14,4)),0) -> 0 | AC24: 0 | AE24: =VLOOKUP(D24,Paramètres!$A$24:$D$36,2) -> 100 | AG24: 0
A25: 2013 | B25: Total | C25: =SUM(C13:C24) -> 0 | H25: =SUM(H13:H24) -> 0 | I25: =SUM(I13:I24) -> 0 | J25: =SUM(J13:J24) -> 0 | K25: =SUM(K13:K24) -> 0 | L25: =SUM(L13:L24) -> 0 | M25: 0 | N25: 0 | O25: 0 | P25: 0 | Q25: 0 | R25: 0 | S25: 0 | U25: =SUM(U13:U24) -> 0 | X25: 0 | Y25: =VLOOKUP($D$5,Paramètres!$A$24:$D$36,3) ->  | Z25: =SUM(Z13:Z24) -> 0 | AB25: =SUM(AB13:AB24) -> 0 | AC25: 0 | AE25: =VLOOKUP($D$5,Paramètres!$A$24:$D$36,2) -> 
A27: =A12+1 -> 2014
A28: =A27 -> 2014 | B28: =B13 -> Bâtiment 1 | C28: 0 | D28: A sélectionner dans la liste déroulante | E28: 0 | F28: =F13 -> à encoder | G28: à encoder | T28: =IF(R28=0,,R28/R13-1) -> 0 | U28: =IF(H28<>0,H28,I28+J28) -> 0 | V28: =IFERROR(J28/U28,"NA") -> NA | W28: =IF(U28=0,0,U28/U13-1) -> 0 | X28: =IFERROR(U28/C28,0) -> 0 | Y28: =VLOOKUP(D28,Paramètres!$A$24:$D$36,3) -> 100 | Z28: =L28*Paramètres!$C$3+M28*Paramètres!$C$4+Encodage!N28*Paramètres!$C$5+Encodage!O28*Paramètres!$C$6+P28*Paramètres!$C$7 -> 0 | AA28: =VLOOKUP(D28,Paramètres!$A$24:$E$36,5) -> 0.85 | AB28: =IFERROR(Z28*(1-AA28)+(Z28*AA28*DJ!$D$2/VLOOKUP(Encodage!A28,DJ!$A$2:$D$14,4)),0) -> 0 | AC28: =IFERROR(AB28/C28,0) -> 0 | AD28: =IF(AB28=0,,AB28/AB13-1) -> 0 | AE28: =VLOOKUP(D28,Paramètres!$A$24:$D$36,2) -> 100 | AF28: =IFERROR(AC28/AC$13,"") ->  | AG28: =AB28*AC28 -> 0
A29: =A28 -> 2014 | B29: Bâtiment 2 | C29: 0 | D29: A sélectionner dans la liste déroulante | E29: 0 | F29: à encoder | G29: à encoder | T29: =IF(R29=0,,R29/R14-1) -> 0 | U29: 0 | V29: NA | W29: 0 | X29: 0 | Y29: =VLOOKUP(D29,Paramètres!$A$24:$D$36,3) -> 100 | Z29: =L29*Paramètres!$C$3+M29*Paramètres!$C$4+Encodage!N29*Paramètres!$C$5+Encodage!O29*Paramètres!$C$6+P29*Paramètres!$C$7 -> 0 | AA29: =VLOOKUP(D29,Paramètres!$A$24:$E$36,5) -> 0.85 | AB29: =IFERROR(Z29*(1-AA29)+(Z29*AA29*DJ!$D$2/VLOOKUP(Encodage!A29,DJ!$A$2:$D$14,4)),0) -> 0 | AC29: 0 | AD29: =IF(AB29=0,,AB29/AB14-1) -> 0 | AE29: =VLOOKUP(D29,Paramètres!$A$24:$D$36,2) -> 100 | AG29: 0
A30: =A29 -> 2014 | B30: Bâtiment 3 | C30: 0 | D30: A sélectionner dans la liste déroulante | E30: 0 | F30: à encoder | G30: à encoder | T30: 0 | U30: 0 | V30: NA | W30: 0 | X30: 0 | Y30: =VLOOKUP(D30,Paramètres!$A$24:$D$36,3) -> 100 | Z30: =L30*Paramètres!$C$3+M30*Paramètres!$C$4+Encodage!N30*Paramètres!$C$5+Encodage!O30*Paramètres!$C$6+P30*Paramètres!$C$7 -> 0 | AA30: =VLOOKUP(D30,Paramètres!$A$24:$E$36,5) -> 0.85 | AB30: =IFERROR(Z30*(1-AA30)+(Z30*AA30*DJ!$D$2/VLOOKUP(Encodage!A30,DJ!$A$2:$D$14,4)),0) -> 0 | AC30: 0 | AD30: 0 | AE30: =VLOOKUP(D30,Paramètres!$A$24:$D$36,2) -> 100 | AG30: 0
A31: 2014 | B31: Bâtiment 4 | C31: 0 | D31: A sélectionner dans la liste déroulante | E31: 0 | F31: =F16 -> à encoder | G31: à encoder | T31: 0 | U31: 0 | V31: NA | W31: 0 | X31: 0 | Y31: =VLOOKUP(D31,Paramètres!$A$24:$D$36,3) -> 100 | Z31: =L31*Paramètres!$C$3+M31*Paramètres!$C$4+Encodage!N31*Paramètres!$C$5+Encodage!O31*Paramètres!$C$6+P31*Paramètres!$C$7 -> 0 | AA31: =VLOOKUP(D31,Paramètres!$A$24:$E$36,5) -> 0.85 | AB31: =IFERROR(Z31*(1-AA31)+(Z31*AA31*DJ!$D$2/VLOOKUP(Encodage!A31,DJ!$A$2:$D$14,4)),0) -> 0 | AC31: 0 | AD31: 0 | AE31: =VLOOKUP(D31,Paramètres!$A$24:$D$36,2) -> 100 | AG31: 0
A32: 2014 | B32: Bâtiment 5 | C32: 0 | D32: A sélectionner dans la liste déroulante | E32: 0 | F32: à encoder | G32: à encoder | T32: 0 | U32: 0 | V32: NA | W32: 0 | X32: 0 | Y32: =VLOOKUP(D32,Paramètres!$A$24:$D$36,3) -> 100 | Z32: =L32*Paramètres!$C$3+M32*Paramètres!$C$4+Encodage!N32*Paramètres!$C$5+Encodage!O32*Paramètres!$C$6+P32*Paramètres!$C$7 -> 0 | AA32: =VLOOKUP(D32,Paramètres!$A$24:$E$36,5) -> 0.85 | AB32: =IFERROR(Z32*(1-AA32)+(Z32*AA32*DJ!$D$2/VLOOKUP(Encodage!A32,DJ!$A$2:$D$14,4)),0) -> 0 | AC32: 0 | AD32: 0 | AE32: =VLOOKUP(D32,Paramètres!$A$24:$D$36,2) -> 100 | AG32: 0
A33: 2014 | B33: Bâtiment 6 | C33: 0 | D33: A sélectionner dans la liste déroulante | E33: 0 | F33: à encoder | G33: à encoder | T33: 0 | U33: 0 | V33: NA | W33: 0 | X33: 0 | Y33: =VLOOKUP(D33,Paramètres!$A$24:$D$36,3) -> 100 | Z33: =L33*Paramètres!$C$3+M33*Paramètres!$C$4+Encodage!N33*Paramètres!$C$5+Encodage!O33*Paramètres!$C$6+P33*Paramètres!$C$7 -> 0 | AA33: =VLOOKUP(D33,Paramètres!$A$24:$E$36,5) -> 0.85 | AB33: =IFERROR(Z33*(1-AA33)+(Z33*AA33*DJ!$D$2/VLOOKUP(Encodage!A33,DJ!$A$2:$D$14,4)),0) -> 0 | AC33: 0 | AD33: 0 | AE33: =VLOOKUP(D33,Paramètres!$A$24:$D$36,2) -> 100 | AG33: 0
A34: 2014 | B34: Bâtiment 7 | C34: 0 | D34: A sélectionner dans la liste déroulante | E34: 0 | F34: à encoder | G34: à encoder | T34: 0 | U34: 0 | V34: NA | W34: 0 | X34: 0 | Y34: =VLOOKUP(D34,Paramètres!$A$24:$D$36,3) -> 100 | Z34: =L34*Paramètres!$C$3+M34*Paramètres!$C$4+Encodage!N34*Paramètres!$C$5+Encodage!O34*Paramètres!$C$6+P34*Paramètres!$C$7 -> 0 | AA34: =VLOOKUP(D34,Paramètres!$A$24:$E$36,5) -> 0.85 | AB34: =IFERROR(Z34*(1-AA34)+(Z34*AA34*DJ!$D$2/VLOOKUP(Encodage!A34,DJ!$A$2:$D$14,4)),0) -> 0 | AC34: 0 | AD34: 0 | AE34: =VLOOKUP(D34,Paramètres!$A$24:$D$36,2) -> 100 | AG34: 0
A35: 2014 | B35: Bâtiment 8 | C35: 0 | D35: A sélectionner dans la liste déroulante | E35: 0 | F35: à encoder | G35: à encoder | T35: 0 | U35: 0 | V35: NA | W35: 0 | X35: 0 | Y35: =VLOOKUP(D35,Paramètres!$A$24:$D$36,3) -> 100 | Z35: =L35*Paramètres!$C$3+M35*Paramètres!$C$4+Encodage!N35*Paramètres!$C$5+Encodage!O35*Paramètres!$C$6+P35*Paramètres!$C$7 -> 0 | AA35: =VLOOKUP(D35,Paramètres!$A$24:$E$36,5) -> 0.85 | AB35: =IFERROR(Z35*(1-AA35)+(Z35*AA35*DJ!$D$2/VLOOKUP(Encodage!A35,DJ!$A$2:$D$14,4)),0) -> 0 | AC35: 0 | AD35: 0 | AE35: =VLOOKUP(D35,Paramètres!$A$24:$D$36,2) -> 100 | AG35: 0
A36: 2014 | B36: Bâtiment 9 | C36: 0 | D36: A sélectionner dans la liste déroulante | E36: 0 | F36: à encoder | G36: à encoder | T36: 0 | U36: 0 | V36: NA | W36: 0 | X36: 0 | Y36: =VLOOKUP(D36,Paramètres!$A$24:$D$36,3) -> 100 | Z36: =L36*Paramètres!$C$3+M36*Paramètres!$C$4+Encodage!N36*Paramètres!$C$5+Encodage!O36*Paramètres!$C$6+P36*Paramètres!$C$7 -> 0 | AA36: =VLOOKUP(D36,Paramètres!$A$24:$E$36,5) -> 0.85 | AB36: =IFERROR(Z36*(1-AA36)+(Z36*AA36*DJ!$D$2/VLOOKUP(Encodage!A36,DJ!$A$2:$D$14,4)),0) -> 0 | AC36: 0 | AD36: 0 | AE36: =VLOOKUP(D36,Paramètres!$A$24:$D$36,2) -> 100 | AG36: 0
A37: 2014 | B37: Bâtiment 10 | C37: 0 | D37: A sélectionner dans la liste déroulante | E37: 0 | F37: à encoder | G37: à encoder | T37: 0 | U37: 0 | V37: NA | W37: 0 | X37: 0 | Y37: =VLOOKUP(D37,Paramètres!$A$24:$D$36,3) -> 100 | Z37: =L37*Paramètres!$C$3+M37*Paramètres!$C$4+Encodage!N37*Paramètres!$C$5+Encodage!O37*Paramètres!$C$6+P37*Paramètres!$C$7 -> 0 | AA37: =VLOOKUP(D37,Paramètres!$A$24:$E$36,5) -> 0.85 | AB37: =IFERROR(Z37*(1-AA37)+(Z37*AA37*DJ!$D$2/VLOOKUP(Encodage!A37,DJ!$A$2:$D$14,4)),0) -> 0 | AC37: 0 | AD37: 0 | AE37: =VLOOKUP(D37,Paramètres!$A$24:$D$36,2) -> 100 | AG37: 0
A38: 2014 | B38: Bâtiment 11 | C38: 0 | D38: A sélectionner dans la liste déroulante | E38: 0 | F38: à encoder | G38: à encoder | T38: 0 | U38: 0 | V38: NA | W38: 0 | X38: 0 | Y38: =VLOOKUP(D38,Paramètres!$A$24:$D$36,3) -> 100 | Z38: =L38*Paramètres!$C$3+M38*Paramètres!$C$4+Encodage!N38*Paramètres!$C$5+Encodage!O38*Paramètres!$C$6+P38*Paramètres!$C$7 -> 0 | AA38: =VLOOKUP(D38,Paramètres!$A$24:$E$36,5) -> 0.85 | AB38: =IFERROR(Z38*(1-AA38)+(Z38*AA38*DJ!$D$2/VLOOKUP(Encodage!A38,DJ!$A$2:$D$14,4)),0) -> 0 | AC38: 0 | AD38: 0 | AE38: =VLOOKUP(D38,Paramètres!$A$24:$D$36,2) -> 100 | AG38: 0
A39: 2014 | B39: Bâtiment 12 | C39: 0 | D39: A sélectionner dans la liste déroulante | E39: 0 | F39: à encoder | G39: à encoder | T39: 0 | U39: 0 | V39: NA | W39: 0 | X39: 0 | Y39: =VLOOKUP(D39,Paramètres!$A$24:$D$36,3) -> 100 | Z39: =L39*Paramètres!$C$3+M39*Paramètres!$C$4+Encodage!N39*Paramètres!$C$5+Encodage!O39*Paramètres!$C$6+P39*Paramètres!$C$7 -> 0 | AA39: =VLOOKUP(D39,Paramètres!$A$24:$E$36,5) -> 0.85 | AB39: =IFERROR(Z39*(1-AA39)+(Z39*AA39*DJ!$D$2/VLOOKUP(Encodage!A39,DJ!$A$2:$D$14,4)),0) -> 0 | AC39: 0 | AD39: 0 | AE39: =VLOOKUP(D39,Paramètres!$A$24:$D$36,2) -> 100 | AG39: 0
A40: 2014 | B40: Total | C40: =SUM(C28:C39) -> 0 | H40: =SUM(H28:H39) -> 0 | I40: =SUM(I28:I39) -> 0 | J40: 0 | K40: 0 | L40: 0 | M40: 0 | N40: 0 | O40: 0 | P40: 0 | Q40: 0 | R40: =SUM(R28:R39) -> 0 | S40: =SUM(S28:S39) -> 0 | U40: =SUM(U28:U39) -> 0 | X40: 0 | Y40: =VLOOKUP($D$5,Paramètres!$A$24:$D$36,3) ->  | Z40: =SUM(Z28:Z39) -> 0 | AB40: =SUM(AB28:AB39) -> 0 | AC40: 0 | AE40: =VLOOKUP($D$5,Paramètres!$A$24:$D$36,2) -> 
A42: =A27+1 -> 2015
A43: =A42 -> 2015 | B43: =B28 -> Bâtiment 1 | C43: 0 | D43: A sélectionner dans la liste déroulante | E43: 0 | F43: à encoder | G43: à encoder | T43: =IF(R43=0,,R43/R28-1) -> 0 | U43: =IF(H43<>0,H43,I43+J43) -> 0 | V43: =IFERROR(J43/U43,"NA") -> NA | W43: =IF(U43=0,0,U43/U28-1) -> 0 | X43: =IFERROR(U43/C43,0) -> 0 | Y43: =VLOOKUP(D43,Paramètres!$A$24:$D$36,3) -> 100 | Z43: =L43*Paramètres!$C$3+M43*Paramètres!$C$4+Encodage!N43*Paramètres!$C$5+Encodage!O43*Paramètres!$C$6+P43*Paramètres!$C$7 -> 0 | AA43: =VLOOKUP(D43,Paramètres!$A$24:$E$36,5) -> 0.85 | AB43: =IFERROR(Z43*(1-AA43)+(Z43*AA43*DJ!$D$2/VLOOKUP(Encodage!A43,DJ!$A$2:$D$14,4)),0) -> 0 | AC43: =IFERROR(AB43/C43,0) -> 0 | AD43: =IF(AB43=0,,AB43/AB28-1) -> 0 | AE43: =VLOOKUP(D43,Paramètres!$A$24:$D$36,2) -> 100 | AF43: =IFERROR(AC43/AC$13,"") ->  | AG43: =AB43*AC43 -> 0
A44: =A43 -> 2015 | B44: Bâtiment 2 | C44: 0 | D44: A sélectionner dans la liste déroulante | E44: 0 | F44: à encoder | G44: à encoder | T44: =IF(R44=0,,R44/R29-1) -> 0 | U44: 0 | V44: NA | W44: =IF(U44=0,0,U44/U29-1) -> 0 | X44: 0 | Y44: =VLOOKUP(D44,Paramètres!$A$24:$D$36,3) -> 100 | Z44: =L44*Paramètres!$C$3+M44*Paramètres!$C$4+Encodage!N44*Paramètres!$C$5+Encodage!O44*Paramètres!$C$6+P44*Paramètres!$C$7 -> 0 | AA44: =VLOOKUP(D44,Paramètres!$A$24:$E$36,5) -> 0.85 | AB44: =IFERROR(Z44*(1-AA44)+(Z44*AA44*DJ!$D$2/VLOOKUP(Encodage!A44,DJ!$A$2:$D$14,4)),0) -> 0 | AC44: 0 | AD44: =IF(AB44=0,,AB44/AB29-1) -> 0 | AE44: =VLOOKUP(D44,Paramètres!$A$24:$D$36,2) -> 100 | AG44: 0
A45: =A44 -> 2015 | B45: Bâtiment 3 | C45: 0 | D45: A sélectionner dans la liste déroulante | E45: 0 | F45: à encoder | G45: à encoder | T45: 0 | U45: 0 | V45: NA | W45: 0 | X45: 0 | Y45: =VLOOKUP(D45,Paramètres!$A$24:$D$36,3) -> 100 | Z45: =L45*Paramètres!$C$3+M45*Paramètres!$C$4+Encodage!N45*Paramètres!$C$5+Encodage!O45*Paramètres!$C$6+P45*Paramètres!$C$7 -> 0 | AA45: =VLOOKUP(D45,Paramètres!$A$24:$E$36,5) -> 0.85 | AB45: =IFERROR(Z45*(1-AA45)+(Z45*AA45*DJ!$D$2/VLOOKUP(Encodage!A45,DJ!$A$2:$D$14,4)),0) -> 0 | AC45: 0 | AD45: 0 | AE45: =VLOOKUP(D45,Paramètres!$A$24:$D$36,2) -> 100 | AG45: 0
A46: 2015 | B46: Bâtiment 4 | C46: 0 | D46: A sélectionner dans la liste déroulante | E46: 0 | F46: =F31 -> à encoder | G46: à encoder | T46: 0 | U46: 0 | V46: NA | W46: 0 | X46: 0 | Y46: =VLOOKUP(D46,Paramètres!$A$24:$D$36,3) -> 100 | Z46: =L46*Paramètres!$C$3+M46*Paramètres!$C$4+Encodage!N46*Paramètres!$C$5+Encodage!O46*Paramètres!$C$6+P46*Paramètres!$C$7 -> 0 | AA46: =VLOOKUP(D46,Paramètres!$A$24:$E$36,5) -> 0.85 | AB46: =IFERROR(Z46*(1-AA46)+(Z46*AA46*DJ!$D$2/VLOOKUP(Encodage!A46,DJ!$A$2:$D$14,4)),0) -> 0 | AC46: 0 | AD46: 0 | AE46: =VLOOKUP(D46,Paramètres!$A$24:$D$36,2) -> 100 | AG46: 0
A47: 2015 | B47: Bâtiment 5 | C47: 0 | D47: A sélectionner dans la liste déroulante | E47: 0 | F47: à encoder | G47: à encoder | T47: 0 | U47: 0 | V47: NA | W47: 0 | X47: 0 | Y47: =VLOOKUP(D47,Paramètres!$A$24:$D$36,3) -> 100 | Z47: =L47*Paramètres!$C$3+M47*Paramètres!$C$4+Encodage!N47*Paramètres!$C$5+Encodage!O47*Paramètres!$C$6+P47*Paramètres!$C$7 -> 0 | AA47: =VLOOKUP(D47,Paramètres!$A$24:$E$36,5) -> 0.85 | AB47: =IFERROR(Z47*(1-AA47)+(Z47*AA47*DJ!$D$2/VLOOKUP(Encodage!A47,DJ!$A$2:$D$14,4)),0) -> 0 | AC47: 0 | AD47: 0 | AE47: =VLOOKUP(D47,Paramètres!$A$24:$D$36,2) -> 100 | AG47: 0
A48: 2015 | B48: Bâtiment 6 | C48: 0 | D48: A sélectionner dans la liste déroulante | E48: 0 | F48: à encoder | G48: à encoder | T48: 0 | U48: 0 | V48: NA | W48: 0 | X48: 0 | Y48: =VLOOKUP(D48,Paramètres!$A$24:$D$36,3) -> 100 | Z48: =L48*Paramètres!$C$3+M48*Paramètres!$C$4+Encodage!N48*Paramètres!$C$5+Encodage!O48*Paramètres!$C$6+P48*Paramètres!$C$7 -> 0 | AA48: =VLOOKUP(D48,Paramètres!$A$24:$E$36,5) -> 0.85 | AB48: =IFERROR(Z48*(1-AA48)+(Z48*AA48*DJ!$D$2/VLOOKUP(Encodage!A48,DJ!$A$2:$D$14,4)),0) -> 0 | AC48: 0 | AD48: 0 | AE48: =VLOOKUP(D48,Paramètres!$A$24:$D$36,2) -> 100 | AG48: 0
A49: 2015 | B49: Bâtiment 7 | C49: 0 | D49: A sélectionner dans la liste déroulante | E49: 0 | F49: à encoder | G49: à encoder | T49: 0 | U49: 0 | V49: NA | W49: 0 | X49: 0 | Y49: =VLOOKUP(D49,Paramètres!$A$24:$D$36,3) -> 100 | Z49: =L49*Paramètres!$C$3+M49*Paramètres!$C$4+Encodage!N49*Paramètres!$C$5+Encodage!O49*Paramètres!$C$6+P49*Paramètres!$C$7 -> 0 | AA49: =VLOOKUP(D49,Paramètres!$A$24:$E$36,5) -> 0.85 | AB49: =IFERROR(Z49*(1-AA49)+(Z49*AA49*DJ!$D$2/VLOOKUP(Encodage!A49,DJ!$A$2:$D$14,4)),0) -> 0 | AC49: 0 | AD49: 0 | AE49: =VLOOKUP(D49,Paramètres!$A$24:$D$36,2) -> 100 | AG49: 0
A50: 2015 | B50: Bâtiment 8 | C50: 0 | D50: A sélectionner dans la liste déroulante | E50: 0 | F50: à encoder | G50: à encoder | T50: 0 | U50: 0 | V50: NA | W50: 0 | X50: 0 | Y50: =VLOOKUP(D50,Paramètres!$A$24:$D$36,3) -> 100 | Z50: =L50*Paramètres!$C$3+M50*Paramètres!$C$4+Encodage!N50*Paramètres!$C$5+Encodage!O50*Paramètres!$C$6+P50*Paramètres!$C$7 -> 0 | AA50: =VLOOKUP(D50,Paramètres!$A$24:$E$36,5) -> 0.85 | AB50: =IFERROR(Z50*(1-AA50)+(Z50*AA50*DJ!$D$2/VLOOKUP(Encodage!A50,DJ!$A$2:$D$14,4)),0) -> 0 | AC50: 0 | AD50: 0 | AE50: =VLOOKUP(D50,Paramètres!$A$24:$D$36,2) -> 100 | AG50: 0
A51: 2015 | B51: Bâtiment 9 | C51: 0 | D51: A sélectionner dans la liste déroulante | E51: 0 | F51: à encoder | G51: à encoder | T51: 0 | U51: 0 | V51: NA | W51: 0 | X51: 0 | Y51: =VLOOKUP(D51,Paramètres!$A$24:$D$36,3) -> 100 | Z51: =L51*Paramètres!$C$3+M51*Paramètres!$C$4+Encodage!N51*Paramètres!$C$5+Encodage!O51*Paramètres!$C$6+P51*Paramètres!$C$7 -> 0 | AA51: =VLOOKUP(D51,Paramètres!$A$24:$E$36,5) -> 0.85 | AB51: =IFERROR(Z51*(1-AA51)+(Z51*AA51*DJ!$D$2/VLOOKUP(Encodage!A51,DJ!$A$2:$D$14,4)),0) -> 0 | AC51: 0 | AD51: 0 | AE51: =VLOOKUP(D51,Paramètres!$A$24:$D$36,2) -> 100 | AG51: 0
A52: 2015 | B52: Bâtiment 10 | C52: 0 | D52: A sélectionner dans la liste déroulante | E52: 0 | F52: à encoder | G52: à encoder | T52: 0 | U52: 0 | V52: NA | W52: 0 | X52: 0 | Y52: =VLOOKUP(D52,Paramètres!$A$24:$D$36,3) -> 100 | Z52: =L52*Paramètres!$C$3+M52*Paramètres!$C$4+Encodage!N52*Paramètres!$C$5+Encodage!O52*Paramètres!$C$6+P52*Paramètres!$C$7 -> 0 | AA52: =VLOOKUP(D52,Paramètres!$A$24:$E$36,5) -> 0.85 | AB52: =IFERROR(Z52*(1-AA52)+(Z52*AA52*DJ!$D$2/VLOOKUP(Encodage!A52,DJ!$A$2:$D$14,4)),0) -> 0 | AC52: 0 | AD52: 0 | AE52: =VLOOKUP(D52,Paramètres!$A$24:$D$36,2) -> 100 | AG52: 0
A53: 2015 | B53: Bâtiment 11 | C53: 0 | D53: A sélectionner dans la liste déroulante | E53: 0 | F53: à encoder | G53: à encoder | T53: 0 | U53: 0 | V53: NA | W53: 0 | X53: 0 | Y53: =VLOOKUP(D53,Paramètres!$A$24:$D$36,3) -> 100 | Z53: =L53*Paramètres!$C$3+M53*Paramètres!$C$4+Encodage!N53*Paramètres!$C$5+Encodage!O53*Paramètres!$C$6+P53*Paramètres!$C$7 -> 0 | AA53: =VLOOKUP(D53,Paramètres!$A$24:$E$36,5) -> 0.85 | AB53: =IFERROR(Z53*(1-AA53)+(Z53*AA53*DJ!$D$2/VLOOKUP(Encodage!A53,DJ!$A$2:$D$14,4)),0) -> 0 | AC53: 0 | AD53: 0 | AE53: =VLOOKUP(D53,Paramètres!$A$24:$D$36,2) -> 100 | AG53: 0
A54: 2015 | B54: Bâtiment 12 | C54: 0 | D54: A sélectionner dans la liste déroulante | E54: 0 | F54: à encoder | G54: à encoder | T54: 0 | U54: 0 | V54: NA | W54: 0 | X54: 0 | Y54: =VLOOKUP(D54,Paramètres!$A$24:$D$36,3) -> 100 | Z54: =L54*Paramètres!$C$3+M54*Paramètres!$C$4+Encodage!N54*Paramètres!$C$5+Encodage!O54*Paramètres!$C$6+P54*Paramètres!$C$7 -> 0 | AA54: =VLOOKUP(D54,Paramètres!$A$24:$E$36,5) -> 0.85 | AB54: =IFERROR(Z54*(1-AA54)+(Z54*AA54*DJ!$D$2/VLOOKUP(Encodage!A54,DJ!$A$2:$D$14,4)),0) -> 0 | AC54: 0 | AD54: 0 | AE54: =VLOOKUP(D54,Paramètres!$A$24:$D$36,2) -> 100 | AG54: 0
A55: 2015 | B55: Total | C55: =SUM(C43:C54) -> 0 | H55: =SUM(H43:H54) -> 0 | I55: =SUM(I43:I54) -> 0 | J55: =SUM(J43:J54) -> 0 | K55: =SUM(K43:K54) -> 0 | L55: =SUM(L43:L54) -> 0 | M55: 0 | N55: 0 | O55: 0 | P55: 0 | Q55: 0 | R55: 0 | S55: 0 | U55: =SUM(U43:U54) -> 0 | X55: 0 | Y55: =VLOOKUP($D$5,Paramètres!$A$24:$D$36,3) ->  | Z55: =SUM(Z43:Z54) -> 0 | AB55: =SUM(AB43:AB54) -> 0 | AC55: 0 | AE55: =VLOOKUP($D$5,Paramètres!$A$24:$D$36,2) -> 
A57: =A42+1 -> 2016
A58: =A57 -> 2016 | B58: =B43 -> Bâtiment 1 | C58: 0 | D58: A sélectionner dans la liste déroulante | E58: 0 | F58: =F43 -> à encoder | G58: =G43 -> à encoder | T58: =IF(R58=0,,R58/R43-1) -> 0 | U58: =IF(H58<>0,H58,I58+J58) -> 0 | V58: =IFERROR(J58/U58,"NA") -> NA | W58: =IF(U58=0,0,U58/U43-1) -> 0 | X58: =IFERROR(U58/C58,0) -> 0 | Y58: =VLOOKUP(D58,Paramètres!$A$24:$D$36,3) -> 100 | Z58: =L58*Paramètres!$C$3+M58*Paramètres!$C$4+Encodage!N58*Paramètres!$C$5+Encodage!O58*Paramètres!$C$6+P58*Paramètres!$C$7 -> 0 | AA58: =VLOOKUP(D58,Paramètres!$A$24:$E$36,5) -> 0.85 | AB58: =IFERROR(Z58*(1-AA58)+(Z58*AA58*DJ!$D$2/VLOOKUP(Encodage!A58,DJ!$A$2:$D$14,4)),0) -> 0 | AC58: =IFERROR(AB58/C58,0) -> 0 | AD58: =IF(AB58=0,,AB58/AB43-1) -> 0 | AE58: =VLOOKUP(D58,Paramètres!$A$24:$D$36,2) -> 100 | AF58: =IFERROR(AC58/AC$13,"") ->  | AG58: =AB58*AC58 -> 0
A59: =A58 -> 2016 | B59: Bâtiment 2 | C59: 0 | D59: A sélectionner dans la liste déroulante | E59: 0 | F59: à encoder | G59: à encoder | T59: =IF(R59=0,,R59/R44-1) -> 0 | U59: 0 | V59: NA | W59: =IF(U59=0,0,U59/U44-1) -> 0 | X59: 0 | Y59: =VLOOKUP(D59,Paramètres!$A$24:$D$36,3) -> 100 | Z59: =L59*Paramètres!$C$3+M59*Paramètres!$C$4+Encodage!N59*Paramètres!$C$5+Encodage!O59*Paramètres!$C$6+P59*Paramètres!$C$7 -> 0 | AA59: =VLOOKUP(D59,Paramètres!$A$24:$E$36,5) -> 0.85 | AB59: =IFERROR(Z59*(1-AA59)+(Z59*AA59*DJ!$D$2/VLOOKUP(Encodage!A59,DJ!$A$2:$D$14,4)),0) -> 0 | AC59: 0 | AD59: =IF(AB59=0,,AB59/AB44-1) -> 0 | AE59: =VLOOKUP(D59,Paramètres!$A$24:$D$36,2) -> 100 | AG59: 0
A60: =A59 -> 2016 | B60: Bâtiment 3 | C60: 0 | D60: A sélectionner dans la liste déroulante | E60: 0 | F60: à encoder | G60: à encoder | T60: 0 | U60: 0 | V60: NA | W60: 0 | X60: 0 | Y60: =VLOOKUP(D60,Paramètres!$A$24:$D$36,3) -> 100 | Z60: =L60*Paramètres!$C$3+M60*Paramètres!$C$4+Encodage!N60*Paramètres!$C$5+Encodage!O60*Paramètres!$C$6+P60*Paramètres!$C$7 -> 0 | AA60: =VLOOKUP(D60,Paramètres!$A$24:$E$36,5) -> 0.85 | AB60: =IFERROR(Z60*(1-AA60)+(Z60*AA60*DJ!$D$2/VLOOKUP(Encodage!A60,DJ!$A$2:$D$14,4)),0) -> 0 | AC60: 0 | AD60: 0 | AE60: =VLOOKUP(D60,Paramètres!$A$24:$D$36,2) -> 100 | AG60: 0
A61: 2016 | B61: Bâtiment 4 | C61: 0 | D61: A sélectionner dans la liste déroulante | E61: 0 | F61: à encoder | G61: à encoder | T61: 0 | U61: 0 | V61: NA | W61: 0 | X61: 0 | Y61: =VLOOKUP(D61,Paramètres!$A$24:$D$36,3) -> 100 | Z61: =L61*Paramètres!$C$3+M61*Paramètres!$C$4+Encodage!N61*Paramètres!$C$5+Encodage!O61*Paramètres!$C$6+P61*Paramètres!$C$7 -> 0 | AA61: =VLOOKUP(D61,Paramètres!$A$24:$E$36,5) -> 0.85 | AB61: =IFERROR(Z61*(1-AA61)+(Z61*AA61*DJ!$D$2/VLOOKUP(Encodage!A61,DJ!$A$2:$D$14,4)),0) -> 0 | AC61: 0 | AD61: 0 | AE61: =VLOOKUP(D61,Paramètres!$A$24:$D$36,2) -> 100 | AG61: 0
A62: 2016 | B62: Bâtiment 5 | C62: 0 | D62: A sélectionner dans la liste déroulante | E62: 0 | F62: à encoder | G62: à encoder | T62: 0 | U62: 0 | V62: NA | W62: 0 | X62: 0 | Y62: =VLOOKUP(D62,Paramètres!$A$24:$D$36,3) -> 100 | Z62: =L62*Paramètres!$C$3+M62*Paramètres!$C$4+Encodage!N62*Paramètres!$C$5+Encodage!O62*Paramètres!$C$6+P62*Paramètres!$C$7 -> 0 | AA62: =VLOOKUP(D62,Paramètres!$A$24:$E$36,5) -> 0.85 | AB62: =IFERROR(Z62*(1-AA62)+(Z62*AA62*DJ!$D$2/VLOOKUP(Encodage!A62,DJ!$A$2:$D$14,4)),0) -> 0 | AC62: 0 | AD62: 0 | AE62: =VLOOKUP(D62,Paramètres!$A$24:$D$36,2) -> 100 | AG62: 0
A63: 2016 | B63: Bâtiment 6 | C63: 0 | D63: A sélectionner dans la liste déroulante | E63: 0 | F63: à encoder | G63: à encoder | T63: 0 | U63: 0 | V63: NA | W63: 0 | X63: 0 | Y63: =VLOOKUP(D63,Paramètres!$A$24:$D$36,3) -> 100 | Z63: =L63*Paramètres!$C$3+M63*Paramètres!$C$4+Encodage!N63*Paramètres!$C$5+Encodage!O63*Paramètres!$C$6+P63*Paramètres!$C$7 -> 0 | AA63: =VLOOKUP(D63,Paramètres!$A$24:$E$36,5) -> 0.85 | AB63: =IFERROR(Z63*(1-AA63)+(Z63*AA63*DJ!$D$2/VLOOKUP(Encodage!A63,DJ!$A$2:$D$14,4)),0) -> 0 | AC63: 0 | AD63: 0 | AE63: =VLOOKUP(D63,Paramètres!$A$24:$D$36,2) -> 100 | AG63: 0
A64: 2016 | B64: Bâtiment 7 | C64: 0 | D64: A sélectionner dans la liste déroulante | E64: 0 | F64: à encoder | G64: à encoder | T64: 0 | U64: 0 | V64: NA | W64: 0 | X64: 0 | Y64: =VLOOKUP(D64,Paramètres!$A$24:$D$36,3) -> 100 | Z64: =L64*Paramètres!$C$3+M64*Paramètres!$C$4+Encodage!N64*Paramètres!$C$5+Encodage!O64*Paramètres!$C$6+P64*Paramètres!$C$7 -> 0 | AA64: =VLOOKUP(D64,Paramètres!$A$24:$E$36,5) -> 0.85 | AB64: =IFERROR(Z64*(1-AA64)+(Z64*AA64*DJ!$D$2/VLOOKUP(Encodage!A64,DJ!$A$2:$D$14,4)),0) -> 0 | AC64: 0 | AD64: 0 | AE64: =VLOOKUP(D64,Paramètres!$A$24:$D$36,2) -> 100 | AG64: 0
A65: 2016 | B65: Bâtiment 8 | C65: 0 | D65: A sélectionner dans la liste déroulante | E65: 0 | F65: à encoder | G65: à encoder | T65: 0 | U65: 0 | V65: NA | W65: 0 | X65: 0 | Y65: =VLOOKUP(D65,Paramètres!$A$24:$D$36,3) -> 100 | Z65: =L65*Paramètres!$C$3+M65*Paramètres!$C$4+Encodage!N65*Paramètres!$C$5+Encodage!O65*Paramètres!$C$6+P65*Paramètres!$C$7 -> 0 | AA65: =VLOOKUP(D65,Paramètres!$A$24:$E$36,5) -> 0.85 | AB65: =IFERROR(Z65*(1-AA65)+(Z65*AA65*DJ!$D$2/VLOOKUP(Encodage!A65,DJ!$A$2:$D$14,4)),0) -> 0 | AC65: 0 | AD65: 0 | AE65: =VLOOKUP(D65,Paramètres!$A$24:$D$36,2) -> 100 | AG65: 0
A66: 2016 | B66: Bâtiment 9 | C66: 0 | D66: A sélectionner dans la liste déroulante | E66: 0 | F66: à encoder | G66: à encoder | T66: 0 | U66: 0 | V66: NA | W66: 0 | X66: 0 | Y66: =VLOOKUP(D66,Paramètres!$A$24:$D$36,3) -> 100 | Z66: =L66*Paramètres!$C$3+M66*Paramètres!$C$4+Encodage!N66*Paramètres!$C$5+Encodage!O66*Paramètres!$C$6+P66*Paramètres!$C$7 -> 0 | AA66: =VLOOKUP(D66,Paramètres!$A$24:$E$36,5) -> 0.85 | AB66: =IFERROR(Z66*(1-AA66)+(Z66*AA66*DJ!$D$2/VLOOKUP(Encodage!A66,DJ!$A$2:$D$14,4)),0) -> 0 | AC66: 0 | AD66: 0 | AE66: =VLOOKUP(D66,Paramètres!$A$24:$D$36,2) -> 100 | AG66: 0
A67: 2016 | B67: Bâtiment 10 | C67: 0 | D67: A sélectionner dans la liste déroulante | E67: 0 | F67: à encoder | G67: à encoder | T67: 0 | U67: 0 | V67: NA | W67: 0 | X67: 0 | Y67: =VLOOKUP(D67,Paramètres!$A$24:$D$36,3) -> 100 | Z67: =L67*Paramètres!$C$3+M67*Paramètres!$C$4+Encodage!N67*Paramètres!$C$5+Encodage!O67*Paramètres!$C$6+P67*Paramètres!$C$7 -> 0 | AA67: =VLOOKUP(D67,Paramètres!$A$24:$E$36,5) -> 0.85 | AB67: =IFERROR(Z67*(1-AA67)+(Z67*AA67*DJ!$D$2/VLOOKUP(Encodage!A67,DJ!$A$2:$D$14,4)),0) -> 0 | AC67: 0 | AD67: 0 | AE67: =VLOOKUP(D67,Paramètres!$A$24:$D$36,2) -> 100 | AG67: 0
A68: 2016 | B68: Bâtiment 11 | C68: 0 | D68: A sélectionner dans la liste déroulante | E68: 0 | F68: à encoder | G68: à encoder | T68: 0 | U68: 0 | V68: NA | W68: 0 | X68: 0 | Y68: =VLOOKUP(D68,Paramètres!$A$24:$D$36,3) -> 100 | Z68: =L68*Paramètres!$C$3+M68*Paramètres!$C$4+Encodage!N68*Paramètres!$C$5+Encodage!O68*Paramètres!$C$6+P68*Paramètres!$C$7 -> 0 | AA68: =VLOOKUP(D68,Paramètres!$A$24:$E$36,5) -> 0.85 | AB68: =IFERROR(Z68*(1-AA68)+(Z68*AA68*DJ!$D$2/VLOOKUP(Encodage!A68,DJ!$A$2:$D$14,4)),0) -> 0 | AC68: 0 | AD68: 0 | AE68: =VLOOKUP(D68,Paramètres!$A$24:$D$36,2) -> 100 | AG68: 0
A69: 2016 | B69: Bâtiment 12 | C69: 0 | D69: A sélectionner dans la liste déroulante | E69: 0 | F69: à encoder | G69: à encoder | T69: 0 | U69: 0 | V69: NA | W69: 0 | X69: 0 | Y69: =VLOOKUP(D69,Paramètres!$A$24:$D$36,3) -> 100 | Z69: =L69*Paramètres!$C$3+M69*Paramètres!$C$4+Encodage!N69*Paramètres!$C$5+Encodage!O69*Paramètres!$C$6+P69*Paramètres!$C$7 -> 0 | AA69: =VLOOKUP(D69,Paramètres!$A$24:$E$36,5) -> 0.85 | AB69: =IFERROR(Z69*(1-AA69)+(Z69*AA69*DJ!$D$2/VLOOKUP(Encodage!A69,DJ!$A$2:$D$14,4)),0) -> 0 | AC69: 0 | AD69: 0 | AE69: =VLOOKUP(D69,Paramètres!$A$24:$D$36,2) -> 100 | AG69: 0
A70: 2016 | B70: Total | C70: =SUM(C58:C69) -> 0 | H70: =SUM(H58:H69) -> 0 | I70: =SUM(I58:I69) -> 0 | J70: =SUM(J58:J69) -> 0 | K70: =SUM(K58:K69) -> 0 | L70: =SUM(L58:L69) -> 0 | M70: 0 | N70: 0 | O70: 0 | P70: 0 | Q70: 0 | R70: 0 | S70: 0 | U70: =SUM(U58:U69) -> 0 | X70: 0 | Y70: =VLOOKUP($D$5,Paramètres!$A$24:$D$36,3) ->  | Z70: =SUM(Z58:Z69) -> 0 | AB70: =SUM(AB58:AB69) -> 0 | AC70: 0 | AE70: =VLOOKUP($D$5,Paramètres!$A$24:$D$36,2) -> 
A72: =A57+1 -> 2017
A73: =A72 -> 2017 | B73: =B58 -> Bâtiment 1 | C73: 0 | D73: A sélectionner dans la liste déroulante | E73: 0 | F73: =F58 -> à encoder | G73: =G58 -> à encoder | T73: =IF(R73=0,,R73/R58-1) -> 0 | U73: =IF(H73<>0,H73,I73+J73) -> 0 | V73: =IFERROR(J73/U73,"NA") -> NA | W73: =IF(U73=0,0,U73/U58-1) -> 0 | X73: =IFERROR(U73/C73,0) -> 0 | Y73: =VLOOKUP(D73,Paramètres!$A$24:$D$36,3) -> 100 | Z73: =L73*Paramètres!$C$3+M73*Paramètres!$C$4+Encodage!N73*Paramètres!$C$5+Encodage!O73*Paramètres!$C$6+P73*Paramètres!$C$7 -> 0 | AA73: =VLOOKUP(D73,Paramètres!$A$24:$E$36,5) -> 0.85 | AB73: =IFERROR(Z73*(1-AA73)+(Z73*AA73*DJ!$D$2/VLOOKUP(Encodage!A73,DJ!$A$2:$D$14,4)),0) -> 0 | AC73: =IFERROR(AB73/C73,0) -> 0 | AD73: =IF(AB73=0,,AB73/AB58-1) -> 0 | AE73: =VLOOKUP(D73,Paramètres!$A$24:$D$36,2) -> 100 | AF73: =IFERROR(AC73/AC$13,"") ->  | AG73: =AB73*AC73 -> 0
A74: =A73 -> 2017 | B74: Bâtiment 2 | C74: 0 | D74: A sélectionner dans la liste déroulante | E74: 0 | F74: à encoder | G74: à encoder | T74: =IF(R74=0,,R74/R59-1) -> 0 | U74: 0 | V74: NA | W74: =IF(U74=0,0,U74/U59-1) -> 0 | X74: 0 | Y74: =VLOOKUP(D74,Paramètres!$A$24:$D$36,3) -> 100 | Z74: =L74*Paramètres!$C$3+M74*Paramètres!$C$4+Encodage!N74*Paramètres!$C$5+Encodage!O74*Paramètres!$C$6+P74*Paramètres!$C$7 -> 0 | AA74: =VLOOKUP(D74,Paramètres!$A$24:$E$36,5) -> 0.85 | AB74: =IFERROR(Z74*(1-AA74)+(Z74*AA74*DJ!$D$2/VLOOKUP(Encodage!A74,DJ!$A$2:$D$14,4)),0) -> 0 | AC74: 0 | AD74: =IF(AB74=0,,AB74/AB59-1) -> 0 | AE74: =VLOOKUP(D74,Paramètres!$A$24:$D$36,2) -> 100 | AG74: 0
A75: =A74 -> 2017 | B75: Bâtiment 3 | C75: 0 | D75: A sélectionner dans la liste déroulante | E75: 0 | F75: à encoder | G75: à encoder | T75: 0 | U75: 0 | V75: NA | W75: 0 | X75: 0 | Y75: =VLOOKUP(D75,Paramètres!$A$24:$D$36,3) -> 100 | Z75: =L75*Paramètres!$C$3+M75*Paramètres!$C$4+Encodage!N75*Paramètres!$C$5+Encodage!O75*Paramètres!$C$6+P75*Paramètres!$C$7 -> 0 | AA75: =VLOOKUP(D75,Paramètres!$A$24:$E$36,5) -> 0.85 | AB75: =IFERROR(Z75*(1-AA75)+(Z75*AA75*DJ!$D$2/VLOOKUP(Encodage!A75,DJ!$A$2:$D$14,4)),0) -> 0 | AC75: 0 | AD75: 0 | AE75: =VLOOKUP(D75,Paramètres!$A$24:$D$36,2) -> 100 | AG75: 0
A76: 2017 | B76: Bâtiment 4 | C76: 0 | D76: A sélectionner dans la liste déroulante | E76: 0 | F76: à encoder | G76: à encoder | T76: 0 | U76: 0 | V76: NA | W76: 0 | X76: 0 | Y76: =VLOOKUP(D76,Paramètres!$A$24:$D$36,3) -> 100 | Z76: =L76*Paramètres!$C$3+M76*Paramètres!$C$4+Encodage!N76*Paramètres!$C$5+Encodage!O76*Paramètres!$C$6+P76*Paramètres!$C$7 -> 0 | AA76: =VLOOKUP(D76,Paramètres!$A$24:$E$36,5) -> 0.85 | AB76: =IFERROR(Z76*(1-AA76)+(Z76*AA76*DJ!$D$2/VLOOKUP(Encodage!A76,DJ!$A$2:$D$14,4)),0) -> 0 | AC76: 0 | AD76: 0 | AE76: =VLOOKUP(D76,Paramètres!$A$24:$D$36,2) -> 100 | AG76: 0
A77: 2017 | B77: Bâtiment 5 | C77: 0 | D77: A sélectionner dans la liste déroulante | E77: 0 | F77: à encoder | G77: à encoder | T77: 0 | U77: 0 | V77: NA | W77: 0 | X77: 0 | Y77: =VLOOKUP(D77,Paramètres!$A$24:$D$36,3) -> 100 | Z77: =L77*Paramètres!$C$3+M77*Paramètres!$C$4+Encodage!N77*Paramètres!$C$5+Encodage!O77*Paramètres!$C$6+P77*Paramètres!$C$7 -> 0 | AA77: =VLOOKUP(D77,Paramètres!$A$24:$E$36,5) -> 0.85 | AB77: =IFERROR(Z77*(1-AA77)+(Z77*AA77*DJ!$D$2/VLOOKUP(Encodage!A77,DJ!$A$2:$D$14,4)),0) -> 0 | AC77: 0 | AD77: 0 | AE77: =VLOOKUP(D77,Paramètres!$A$24:$D$36,2) -> 100 | AG77: 0
A78: 2017 | B78: Bâtiment 6 | C78: 0 | D78: A sélectionner dans la liste déroulante | E78: 0 | F78: à encoder | G78: à encoder | T78: 0 | U78: 0 | V78: NA | W78: 0 | X78: 0 | Y78: =VLOOKUP(D78,Paramètres!$A$24:$D$36,3) -> 100 | Z78: =L78*Paramètres!$C$3+M78*Paramètres!$C$4+Encodage!N78*Paramètres!$C$5+Encodage!O78*Paramètres!$C$6+P78*Paramètres!$C$7 -> 0 | AA78: =VLOOKUP(D78,Paramètres!$A$24:$E$36,5) -> 0.85 | AB78: =IFERROR(Z78*(1-AA78)+(Z78*AA78*DJ!$D$2/VLOOKUP(Encodage!A78,DJ!$A$2:$D$14,4)),0) -> 0 | AC78: 0 | AD78: 0 | AE78: =VLOOKUP(D78,Paramètres!$A$24:$D$36,2) -> 100 | AG78: 0
A79: 2017 | B79: Bâtiment 7 | C79: 0 | D79: A sélectionner dans la liste déroulante | E79: 0 | F79: à encoder | G79: à encoder | T79: 0 | U79: 0 | V79: NA | W79: 0 | X79: 0 | Y79: =VLOOKUP(D79,Paramètres!$A$24:$D$36,3) -> 100 | Z79: =L79*Paramètres!$C$3+M79*Paramètres!$C$4+Encodage!N79*Paramètres!$C$5+Encodage!O79*Paramètres!$C$6+P79*Paramètres!$C$7 -> 0 | AA79: =VLOOKUP(D79,Paramètres!$A$24:$E$36,5) -> 0.85 | AB79: =IFERROR(Z79*(1-AA79)+(Z79*AA79*DJ!$D$2/VLOOKUP(Encodage!A79,DJ!$A$2:$D$14,4)),0) -> 0 | AC79: 0 | AD79: 0 | AE79: =VLOOKUP(D79,Paramètres!$A$24:$D$36,2) -> 100 | AG79: 0
A80: 2017 | B80: Bâtiment 8 | C80: 0 | D80: A sélectionner dans la liste déroulante | E80: 0 | F80: à encoder | G80: à encoder | T80: 0 | U80: 0 | V80: NA | W80: 0 | X80: 0 | Y80: =VLOOKUP(D80,Paramètres!$A$24:$D$36,3) -> 100 | Z80: =L80*Paramètres!$C$3+M80*Paramètres!$C$4+Encodage!N80*Paramètres!$C$5+Encodage!O80*Paramètres!$C$6+P80*Paramètres!$C$7 -> 0 | AA80: =VLOOKUP(D80,Paramètres!$A$24:$E$36,5) -> 0.85 | AB80: =IFERROR(Z80*(1-AA80)+(Z80*AA80*DJ!$D$2/VLOOKUP(Encodage!A80,DJ!$A$2:$D$14,4)),0) -> 0 | AC80: 0 | AD80: 0 | AE80: =VLOOKUP(D80,Paramètres!$A$24:$D$36,2) -> 100 | AG80: 0
A81: 2017 | B81: Bâtiment 9 | C81: 0 | D81: A sélectionner dans la liste déroulante | E81: 0 | F81: à encoder | G81: à encoder | T81: 0 | U81: 0 | V81: NA | W81: 0 | X81: 0 | Y81: =VLOOKUP(D81,Paramètres!$A$24:$D$36,3) -> 100 | Z81: =L81*Paramètres!$C$3+M81*Paramètres!$C$4+Encodage!N81*Paramètres!$C$5+Encodage!O81*Paramètres!$C$6+P81*Paramètres!$C$7 -> 0 | AA81: =VLOOKUP(D81,Paramètres!$A$24:$E$36,5) -> 0.85 | AB81: =IFERROR(Z81*(1-AA81)+(Z81*AA81*DJ!$D$2/VLOOKUP(Encodage!A81,DJ!$A$2:$D$14,4)),0) -> 0 | AC81: 0 | AD81: 0 | AE81: =VLOOKUP(D81,Paramètres!$A$24:$D$36,2) -> 100 | AG81: 0
A82: 2017 | B82: Bâtiment 10 | C82: 0 | D82: A sélectionner dans la liste déroulante | E82: 0 | F82: à encoder | G82: à encoder | T82: 0 | U82: 0 | V82: NA | W82: 0 | X82: 0 | Y82: =VLOOKUP(D82,Paramètres!$A$24:$D$36,3) -> 100 | Z82: =L82*Paramètres!$C$3+M82*Paramètres!$C$4+Encodage!N82*Paramètres!$C$5+Encodage!O82*Paramètres!$C$6+P82*Paramètres!$C$7 -> 0 | AA82: =VLOOKUP(D82,Paramètres!$A$24:$E$36,5) -> 0.85 | AB82: =IFERROR(Z82*(1-AA82)+(Z82*AA82*DJ!$D$2/VLOOKUP(Encodage!A82,DJ!$A$2:$D$14,4)),0) -> 0 | AC82: 0 | AD82: 0 | AE82: =VLOOKUP(D82,Paramètres!$A$24:$D$36,2) -> 100 | AG82: 0
A83: 2017 | B83: Bâtiment 11 | C83: 0 | D83: A sélectionner dans la liste déroulante | E83: 0 | F83: à encoder | G83: à encoder | T83: 0 | U83: 0 | V83: NA | W83: 0 | X83: 0 | Y83: =VLOOKUP(D83,Paramètres!$A$24:$D$36,3) -> 100 | Z83: =L83*Paramètres!$C$3+M83*Paramètres!$C$4+Encodage!N83*Paramètres!$C$5+Encodage!O83*Paramètres!$C$6+P83*Paramètres!$C$7 -> 0 | AA83: =VLOOKUP(D83,Paramètres!$A$24:$E$36,5) -> 0.85 | AB83: =IFERROR(Z83*(1-AA83)+(Z83*AA83*DJ!$D$2/VLOOKUP(Encodage!A83,DJ!$A$2:$D$14,4)),0) -> 0 | AC83: 0 | AD83: 0 | AE83: =VLOOKUP(D83,Paramètres!$A$24:$D$36,2) -> 100 | AG83: 0
A84: 2017 | B84: Bâtiment 12 | C84: 0 | D84: A sélectionner dans la liste déroulante | E84: 0 | F84: à encoder | G84: à encoder | T84: 0 | U84: 0 | V84: NA | W84: 0 | X84: 0 | Y84: =VLOOKUP(D84,Paramètres!$A$24:$D$36,3) -> 100 | Z84: =L84*Paramètres!$C$3+M84*Paramètres!$C$4+Encodage!N84*Paramètres!$C$5+Encodage!O84*Paramètres!$C$6+P84*Paramètres!$C$7 -> 0 | AA84: =VLOOKUP(D84,Paramètres!$A$24:$E$36,5) -> 0.85 | AB84: =IFERROR(Z84*(1-AA84)+(Z84*AA84*DJ!$D$2/VLOOKUP(Encodage!A84,DJ!$A$2:$D$14,4)),0) -> 0 | AC84: 0 | AD84: 0 | AE84: =VLOOKUP(D84,Paramètres!$A$24:$D$36,2) -> 100 | AG84: 0
A85: 2017 | B85: Total | C85: =SUM(C73:C84) -> 0 | H85: =SUM(H73:H84) -> 0 | I85: =SUM(I73:I84) -> 0 | J85: =SUM(J73:J84) -> 0 | K85: =SUM(K73:K84) -> 0 | L85: =SUM(L73:L84) -> 0 | M85: 0 | N85: 0 | O85: 0 | P85: 0 | Q85: 0 | R85: 0 | S85: 0 | U85: =SUM(U73:U84) -> 0 | X85: 0 | Y85: =VLOOKUP($D$5,Paramètres!$A$24:$D$36,3) ->  | Z85: =SUM(Z73:Z84) -> 0 | AB85: =SUM(AB73:AB84) -> 0 | AC85: 0 | AE85: =VLOOKUP($D$5,Paramètres!$A$24:$D$36,2) -> 
A87: =A72+1 -> 2018
A88: =A87 -> 2018 | B88: =B73 -> Bâtiment 1 | C88: 0 | D88: A sélectionner dans la liste déroulante | E88: 0 | F88: =F73 -> à encoder | G88: =G73 -> à encoder | T88: =IF(R88=0,,R88/R73-1) -> 0 | U88: =IF(H88<>0,H88,I88+J88) -> 0 | V88: =IFERROR(J88/U88,"NA") -> NA | W88: =IF(U88=0,0,U88/U73-1) -> 0 | X88: =IFERROR(U88/C88,0) -> 0 | Y88: =VLOOKUP(D88,Paramètres!$A$24:$D$36,3) -> 100 | Z88: =L88*Paramètres!$C$3+M88*Paramètres!$C$4+Encodage!N88*Paramètres!$C$5+Encodage!O88*Paramètres!$C$6+P88*Paramètres!$C$7 -> 0 | AA88: =VLOOKUP(D88,Paramètres!$A$24:$E$36,5) -> 0.85 | AB88: =IFERROR(Z88*(1-AA88)+(Z88*AA88*DJ!$D$2/VLOOKUP(Encodage!A88,DJ!$A$2:$D$14,4)),0) -> 0 | AC88: =IFERROR(AB88/C88,0) -> 0 | AD88: =IF(AB88=0,,AB88/AB73-1) -> 0 | AE88: =VLOOKUP(D88,Paramètres!$A$24:$D$36,2) -> 100 | AF88: =IFERROR(AC88/AC$13,"") ->  | AG88: =AB88*AC88 -> 0
A89: =A88 -> 2018 | B89: Bâtiment 2 | C89: 0 | D89: A sélectionner dans la liste déroulante | E89: 0 | F89: à encoder | G89: à encoder | T89: =IF(R89=0,,R89/R74-1) -> 0 | U89: 0 | V89: NA | W89: =IF(U89=0,0,U89/U74-1) -> 0 | X89: 0 | Y89: =VLOOKUP(D89,Paramètres!$A$24:$D$36,3) -> 100 | Z89: =L89*Paramètres!$C$3+M89*Paramètres!$C$4+Encodage!N89*Paramètres!$C$5+Encodage!O89*Paramètres!$C$6+P89*Paramètres!$C$7 -> 0 | AA89: =VLOOKUP(D89,Paramètres!$A$24:$E$36,5) -> 0.85 | AB89: =IFERROR(Z89*(1-AA89)+(Z89*AA89*DJ!$D$2/VLOOKUP(Encodage!A89,DJ!$A$2:$D$14,4)),0) -> 0 | AC89: 0 | AD89: =IF(AB89=0,,AB89/AB74-1) -> 0 | AE89: =VLOOKUP(D89,Paramètres!$A$24:$D$36,2) -> 100 | AG89: 0
A90: =A89 -> 2018 | B90: Bâtiment 3 | C90: 0 | D90: A sélectionner dans la liste déroulante | E90: 0 | F90: à encoder | G90: à encoder | T90: 0 | U90: 0 | V90: NA | W90: 0 | X90: 0 | Y90: =VLOOKUP(D90,Paramètres!$A$24:$D$36,3) -> 100 | Z90: =L90*Paramètres!$C$3+M90*Paramètres!$C$4+Encodage!N90*Paramètres!$C$5+Encodage!O90*Paramètres!$C$6+P90*Paramètres!$C$7 -> 0 | AA90: =VLOOKUP(D90,Paramètres!$A$24:$E$36,5) -> 0.85 | AB90: =IFERROR(Z90*(1-AA90)+(Z90*AA90*DJ!$D$2/VLOOKUP(Encodage!A90,DJ!$A$2:$D$14,4)),0) -> 0 | AC90: 0 | AD90: 0 | AE90: =VLOOKUP(D90,Paramètres!$A$24:$D$36,2) -> 100 | AG90: 0
A91: 2018 | B91: Bâtiment 4 | C91: 0 | D91: A sélectionner dans la liste déroulante | E91: 0 | F91: à encoder | G91: à encoder | T91: 0 | U91: 0 | V91: NA | W91: 0 | X91: 0 | Y91: =VLOOKUP(D91,Paramètres!$A$24:$D$36,3) -> 100 | Z91: =L91*Paramètres!$C$3+M91*Paramètres!$C$4+Encodage!N91*Paramètres!$C$5+Encodage!O91*Paramètres!$C$6+P91*Paramètres!$C$7 -> 0 | AA91: =VLOOKUP(D91,Paramètres!$A$24:$E$36,5) -> 0.85 | AB91: =IFERROR(Z91*(1-AA91)+(Z91*AA91*DJ!$D$2/VLOOKUP(Encodage!A91,DJ!$A$2:$D$14,4)),0) -> 0 | AC91: 0 | AD91: 0 | AE91: =VLOOKUP(D91,Paramètres!$A$24:$D$36,2) -> 100 | AG91: 0
A92: 2018 | B92: Bâtiment 5 | C92: 0 | D92: A sélectionner dans la liste déroulante | E92: 0 | F92: à encoder | G92: à encoder | T92: 0 | U92: 0 | V92: NA | W92: 0 | X92: 0 | Y92: =VLOOKUP(D92,Paramètres!$A$24:$D$36,3) -> 100 | Z92: =L92*Paramètres!$C$3+M92*Paramètres!$C$4+Encodage!N92*Paramètres!$C$5+Encodage!O92*Paramètres!$C$6+P92*Paramètres!$C$7 -> 0 | AA92: =VLOOKUP(D92,Paramètres!$A$24:$E$36,5) -> 0.85 | AB92: =IFERROR(Z92*(1-AA92)+(Z92*AA92*DJ!$D$2/VLOOKUP(Encodage!A92,DJ!$A$2:$D$14,4)),0) -> 0 | AC92: 0 | AD92: 0 | AE92: =VLOOKUP(D92,Paramètres!$A$24:$D$36,2) -> 100 | AG92: 0
A93: 2018 | B93: Bâtiment 6 | C93: 0 | D93: A sélectionner dans la liste déroulante | E93: 0 | F93: à encoder | G93: à encoder | T93: 0 | U93: 0 | V93: NA | W93: 0 | X93: 0 | Y93: =VLOOKUP(D93,Paramètres!$A$24:$D$36,3) -> 100 | Z93: =L93*Paramètres!$C$3+M93*Paramètres!$C$4+Encodage!N93*Paramètres!$C$5+Encodage!O93*Paramètres!$C$6+P93*Paramètres!$C$7 -> 0 | AA93: =VLOOKUP(D93,Paramètres!$A$24:$E$36,5) -> 0.85 | AB93: =IFERROR(Z93*(1-AA93)+(Z93*AA93*DJ!$D$2/VLOOKUP(Encodage!A93,DJ!$A$2:$D$14,4)),0) -> 0 | AC93: 0 | AD93: 0 | AE93: =VLOOKUP(D93,Paramètres!$A$24:$D$36,2) -> 100 | AG93: 0
A94: 2018 | B94: Bâtiment 7 | C94: 0 | D94: A sélectionner dans la liste déroulante | E94: 0 | F94: à encoder | G94: à encoder | T94: 0 | U94: 0 | V94: NA | W94: 0 | X94: 0 | Y94: =VLOOKUP(D94,Paramètres!$A$24:$D$36,3) -> 100 | Z94: =L94*Paramètres!$C$3+M94*Paramètres!$C$4+Encodage!N94*Paramètres!$C$5+Encodage!O94*Paramètres!$C$6+P94*Paramètres!$C$7 -> 0 | AA94: =VLOOKUP(D94,Paramètres!$A$24:$E$36,5) -> 0.85 | AB94: =IFERROR(Z94*(1-AA94)+(Z94*AA94*DJ!$D$2/VLOOKUP(Encodage!A94,DJ!$A$2:$D$14,4)),0) -> 0 | AC94: 0 | AD94: 0 | AE94: =VLOOKUP(D94,Paramètres!$A$24:$D$36,2) -> 100 | AG94: 0
A95: 2018 | B95: Bâtiment 8 | C95: 0 | D95: A sélectionner dans la liste déroulante | E95: 0 | F95: à encoder | G95: à encoder | T95: 0 | U95: 0 | V95: NA | W95: 0 | X95: 0 | Y95: =VLOOKUP(D95,Paramètres!$A$24:$D$36,3) -> 100 | Z95: =L95*Paramètres!$C$3+M95*Paramètres!$C$4+Encodage!N95*Paramètres!$C$5+Encodage!O95*Paramètres!$C$6+P95*Paramètres!$C$7 -> 0 | AA95: =VLOOKUP(D95,Paramètres!$A$24:$E$36,5) -> 0.85 | AB95: =IFERROR(Z95*(1-AA95)+(Z95*AA95*DJ!$D$2/VLOOKUP(Encodage!A95,DJ!$A$2:$D$14,4)),0) -> 0 | AC95: 0 | AD95: 0 | AE95: =VLOOKUP(D95,Paramètres!$A$24:$D$36,2) -> 100 | AG95: 0
A96: 2018 | B96: Bâtiment 9 | C96: 0 | D96: A sélectionner dans la liste déroulante | E96: 0 | F96: à encoder | G96: à encoder | T96: 0 | U96: 0 | V96: NA | W96: 0 | X96: 0 | Y96: =VLOOKUP(D96,Paramètres!$A$24:$D$36,3) -> 100 | Z96: =L96*Paramètres!$C$3+M96*Paramètres!$C$4+Encodage!N96*Paramètres!$C$5+Encodage!O96*Paramètres!$C$6+P96*Paramètres!$C$7 -> 0 | AA96: =VLOOKUP(D96,Paramètres!$A$24:$E$36,5) -> 0.85 | AB96: =IFERROR(Z96*(1-AA96)+(Z96*AA96*DJ!$D$2/VLOOKUP(Encodage!A96,DJ!$A$2:$D$14,4)),0) -> 0 | AC96: 0 | AD96: 0 | AE96: =VLOOKUP(D96,Paramètres!$A$24:$D$36,2) -> 100 | AG96: 0
A97: 2018 | B97: Bâtiment 10 | C97: 0 | D97: A sélectionner dans la liste déroulante | E97: 0 | F97: à encoder | G97: à encoder | T97: 0 | U97: 0 | V97: NA | W97: 0 | X97: 0 | Y97: =VLOOKUP(D97,Paramètres!$A$24:$D$36,3) -> 100 | Z97: =L97*Paramètres!$C$3+M97*Paramètres!$C$4+Encodage!N97*Paramètres!$C$5+Encodage!O97*Paramètres!$C$6+P97*Paramètres!$C$7 -> 0 | AA97: =VLOOKUP(D97,Paramètres!$A$24:$E$36,5) -> 0.85 | AB97: =IFERROR(Z97*(1-AA97)+(Z97*AA97*DJ!$D$2/VLOOKUP(Encodage!A97,DJ!$A$2:$D$14,4)),0) -> 0 | AC97: 0 | AD97: 0 | AE97: =VLOOKUP(D97,Paramètres!$A$24:$D$36,2) -> 100 | AG97: 0
A98: 2018 | B98: Bâtiment 11 | C98: 0 | D98: A sélectionner dans la liste déroulante | E98: 0 | F98: à encoder | G98: à encoder | T98: 0 | U98: 0 | V98: NA | W98: 0 | X98: 0 | Y98: =VLOOKUP(D98,Paramètres!$A$24:$D$36,3) -> 100 | Z98: =L98*Paramètres!$C$3+M98*Paramètres!$C$4+Encodage!N98*Paramètres!$C$5+Encodage!O98*Paramètres!$C$6+P98*Paramètres!$C$7 -> 0 | AA98: =VLOOKUP(D98,Paramètres!$A$24:$E$36,5) -> 0.85 | AB98: =IFERROR(Z98*(1-AA98)+(Z98*AA98*DJ!$D$2/VLOOKUP(Encodage!A98,DJ!$A$2:$D$14,4)),0) -> 0 | AC98: 0 | AD98: 0 | AE98: =VLOOKUP(D98,Paramètres!$A$24:$D$36,2) -> 100 | AG98: 0
A99: 2018 | B99: Bâtiment 12 | C99: 0 | D99: A sélectionner dans la liste déroulante | E99: 0 | F99: à encoder | G99: à encoder | T99: 0 | U99: 0 | V99: NA | W99: 0 | X99: 0 | Y99: =VLOOKUP(D99,Paramètres!$A$24:$D$36,3) -> 100 | Z99: =L99*Paramètres!$C$3+M99*Paramètres!$C$4+Encodage!N99*Paramètres!$C$5+Encodage!O99*Paramètres!$C$6+P99*Paramètres!$C$7 -> 0 | AA99: =VLOOKUP(D99,Paramètres!$A$24:$E$36,5) -> 0.85 | AB99: =IFERROR(Z99*(1-AA99)+(Z99*AA99*DJ!$D$2/VLOOKUP(Encodage!A99,DJ!$A$2:$D$14,4)),0) -> 0 | AC99: 0 | AD99: 0 | AE99: =VLOOKUP(D99,Paramètres!$A$24:$D$36,2) -> 100 | AG99: 0
A100: 2018 | B100: Total | C100: =SUM(C88:C99) -> 0 | H100: =SUM(H88:H99) -> 0 | I100: =SUM(I88:I99) -> 0 | J100: =SUM(J88:J99) -> 0 | K100: =SUM(K88:K99) -> 0 | L100: =SUM(L88:L99) -> 0 | M100: 0 | N100: 0 | O100: 0 | P100: 0 | Q100: 0 | R100: 0 | S100: 0 | U100: =SUM(U88:U99) -> 0 | X100: 0 | Y100: =VLOOKUP($D$5,Paramètres!$A$24:$D$36,3) ->  | Z100: =SUM(Z88:Z99) -> 0 | AB100: =SUM(AB88:AB99) -> 0 | AC100: 0 | AE100: =VLOOKUP($D$5,Paramètres!$A$24:$D$36,2) -> 
A102: =A87+1 -> 2019
A103: =A102 -> 2019 | B103: =B88 -> Bâtiment 1 | C103: 0 | D103: A sélectionner dans la liste déroulante | E103: 0 | F103: =F88 -> à encoder | G103: =G88 -> à encoder | T103: =IF(R103=0,,R103/R88-1) -> 0 | U103: =IF(H103<>0,H103,I103+J103) -> 0 | V103: =IFERROR(J103/U103,"NA") -> NA | W103: =IF(U103=0,0,U103/U88-1) -> 0 | X103: =IFERROR(U103/C103,0) -> 0 | Y103: =VLOOKUP(D103,Paramètres!$A$24:$D$36,3) -> 100 | Z103: =L103*Paramètres!$C$3+M103*Paramètres!$C$4+Encodage!N103*Paramètres!$C$5+Encodage!O103*Paramètres!$C$6+P103*Paramètres!$C$7 -> 0 | AA103: =VLOOKUP(D103,Paramètres!$A$24:$E$36,5) -> 0.85 | AB103: =IFERROR(Z103*(1-AA103)+(Z103*AA103*DJ!$D$2/VLOOKUP(Encodage!A103,DJ!$A$2:$D$14,4)),0) -> 0 | AC103: =IFERROR(AB103/C103,0) -> 0 | AD103: =IF(AB103=0,,AB103/AB88-1) -> 0 | AE103: =VLOOKUP(D103,Paramètres!$A$24:$D$36,2) -> 100 | AF103: =IFERROR(AC103/AC$13,"") ->  | AG103: =AB103*AC103 -> 0
A104: =A103 -> 2019 | B104: Bâtiment 2 | C104: 0 | D104: A sélectionner dans la liste déroulante | E104: 0 | F104: à encoder | G104: à encoder | T104: =IF(R104=0,,R104/R89-1) -> 0 | U104: 0 | V104: NA | W104: =IF(U104=0,0,U104/U89-1) -> 0 | X104: 0 | Y104: =VLOOKUP(D104,Paramètres!$A$24:$D$36,3) -> 100 | Z104: =L104*Paramètres!$C$3+M104*Paramètres!$C$4+Encodage!N104*Paramètres!$C$5+Encodage!O104*Paramètres!$C$6+P104*Paramètres!$C$7 -> 0 | AA104: =VLOOKUP(D104,Paramètres!$A$24:$E$36,5) -> 0.85 | AB104: =IFERROR(Z104*(1-AA104)+(Z104*AA104*DJ!$D$2/VLOOKUP(Encodage!A104,DJ!$A$2:$D$14,4)),0) -> 0 | AC104: 0 | AD104: =IF(AB104=0,,AB104/AB89-1) -> 0 | AE104: =VLOOKUP(D104,Paramètres!$A$24:$D$36,2) -> 100 | AG104: 0
A105: =A104 -> 2019 | B105: Bâtiment 3 | C105: 0 | D105: A sélectionner dans la liste déroulante | E105: 0 | F105: à encoder | G105: à encoder | T105: 0 | U105: 0 | V105: NA | W105: 0 | X105: 0 | Y105: =VLOOKUP(D105,Paramètres!$A$24:$D$36,3) -> 100 | Z105: =L105*Paramètres!$C$3+M105*Paramètres!$C$4+Encodage!N105*Paramètres!$C$5+Encodage!O105*Paramètres!$C$6+P105*Paramètres!$C$7 -> 0 | AA105: =VLOOKUP(D105,Paramètres!$A$24:$E$36,5) -> 0.85 | AB105: =IFERROR(Z105*(1-AA105)+(Z105*AA105*DJ!$D$2/VLOOKUP(Encodage!A105,DJ!$A$2:$D$14,4)),0) -> 0 | AC105: 0 | AD105: 0 | AE105: =VLOOKUP(D105,Paramètres!$A$24:$D$36,2) -> 100 | AG105: 0
A106: 2019 | B106: Bâtiment 4 | C106: 0 | D106: A sélectionner dans la liste déroulante | E106: 0 | F106: à encoder | G106: à encoder | T106: 0 | U106: 0 | V106: NA | W106: 0 | X106: 0 | Y106: =VLOOKUP(D106,Paramètres!$A$24:$D$36,3) -> 100 | Z106: =L106*Paramètres!$C$3+M106*Paramètres!$C$4+Encodage!N106*Paramètres!$C$5+Encodage!O106*Paramètres!$C$6+P106*Paramètres!$C$7 -> 0 | AA106: =VLOOKUP(D106,Paramètres!$A$24:$E$36,5) -> 0.85 | AB106: =IFERROR(Z106*(1-AA106)+(Z106*AA106*DJ!$D$2/VLOOKUP(Encodage!A106,DJ!$A$2:$D$14,4)),0) -> 0 | AC106: 0 | AD106: 0 | AE106: =VLOOKUP(D106,Paramètres!$A$24:$D$36,2) -> 100 | AG106: 0
A107: 2019 | B107: Bâtiment 5 | C107: 0 | D107: A sélectionner dans la liste déroulante | E107: 0 | F107: à encoder | G107: à encoder | T107: 0 | U107: 0 | V107: NA | W107: 0 | X107: 0 | Y107: =VLOOKUP(D107,Paramètres!$A$24:$D$36,3) -> 100 | Z107: =L107*Paramètres!$C$3+M107*Paramètres!$C$4+Encodage!N107*Paramètres!$C$5+Encodage!O107*Paramètres!$C$6+P107*Paramètres!$C$7 -> 0 | AA107: =VLOOKUP(D107,Paramètres!$A$24:$E$36,5) -> 0.85 | AB107: =IFERROR(Z107*(1-AA107)+(Z107*AA107*DJ!$D$2/VLOOKUP(Encodage!A107,DJ!$A$2:$D$14,4)),0) -> 0 | AC107: 0 | AD107: 0 | AE107: =VLOOKUP(D107,Paramètres!$A$24:$D$36,2) -> 100 | AG107: 0
A108: 2019 | B108: Bâtiment 6 | C108: 0 | D108: A sélectionner dans la liste déroulante | E108: 0 | F108: à encoder | G108: à encoder | T108: 0 | U108: 0 | V108: NA | W108: 0 | X108: 0 | Y108: =VLOOKUP(D108,Paramètres!$A$24:$D$36,3) -> 100 | Z108: =L108*Paramètres!$C$3+M108*Paramètres!$C$4+Encodage!N108*Paramètres!$C$5+Encodage!O108*Paramètres!$C$6+P108*Paramètres!$C$7 -> 0 | AA108: =VLOOKUP(D108,Paramètres!$A$24:$E$36,5) -> 0.85 | AB108: =IFERROR(Z108*(1-AA108)+(Z108*AA108*DJ!$D$2/VLOOKUP(Encodage!A108,DJ!$A$2:$D$14,4)),0) -> 0 | AC108: 0 | AD108: 0 | AE108: =VLOOKUP(D108,Paramètres!$A$24:$D$36,2) -> 100 | AG108: 0
A109: 2019 | B109: Bâtiment 7 | C109: 0 | D109: A sélectionner dans la liste déroulante | E109: 0 | F109: à encoder | G109: à encoder | T109: 0 | U109: 0 | V109: NA | W109: 0 | X109: 0 | Y109: =VLOOKUP(D109,Paramètres!$A$24:$D$36,3) -> 100 | Z109: =L109*Paramètres!$C$3+M109*Paramètres!$C$4+Encodage!N109*Paramètres!$C$5+Encodage!O109*Paramètres!$C$6+P109*Paramètres!$C$7 -> 0 | AA109: =VLOOKUP(D109,Paramètres!$A$24:$E$36,5) -> 0.85 | AB109: =IFERROR(Z109*(1-AA109)+(Z109*AA109*DJ!$D$2/VLOOKUP(Encodage!A109,DJ!$A$2:$D$14,4)),0) -> 0 | AC109: 0 | AD109: 0 | AE109: =VLOOKUP(D109,Paramètres!$A$24:$D$36,2) -> 100 | AG109: 0
A110: 2019 | B110: Bâtiment 8 | C110: 0 | D110: A sélectionner dans la liste déroulante | E110: 0 | F110: à encoder | G110: à encoder | T110: 0 | U110: 0 | V110: NA | W110: 0 | X110: 0 | Y110: =VLOOKUP(D110,Paramètres!$A$24:$D$36,3) -> 100 | Z110: =L110*Paramètres!$C$3+M110*Paramètres!$C$4+Encodage!N110*Paramètres!$C$5+Encodage!O110*Paramètres!$C$6+P110*Paramètres!$C$7 -> 0 | AA110: =VLOOKUP(D110,Paramètres!$A$24:$E$36,5) -> 0.85 | AB110: =IFERROR(Z110*(1-AA110)+(Z110*AA110*DJ!$D$2/VLOOKUP(Encodage!A110,DJ!$A$2:$D$14,4)),0) -> 0 | AC110: 0 | AD110: 0 | AE110: =VLOOKUP(D110,Paramètres!$A$24:$D$36,2) -> 100 | AG110: 0
A111: 2019 | B111: Bâtiment 9 | C111: 0 | D111: A sélectionner dans la liste déroulante | E111: 0 | F111: à encoder | G111: à encoder | T111: 0 | U111: 0 | V111: NA | W111: 0 | X111: 0 | Y111: =VLOOKUP(D111,Paramètres!$A$24:$D$36,3) -> 100 | Z111: =L111*Paramètres!$C$3+M111*Paramètres!$C$4+Encodage!N111*Paramètres!$C$5+Encodage!O111*Paramètres!$C$6+P111*Paramètres!$C$7 -> 0 | AA111: =VLOOKUP(D111,Paramètres!$A$24:$E$36,5) -> 0.85 | AB111: =IFERROR(Z111*(1-AA111)+(Z111*AA111*DJ!$D$2/VLOOKUP(Encodage!A111,DJ!$A$2:$D$14,4)),0) -> 0 | AC111: 0 | AD111: 0 | AE111: =VLOOKUP(D111,Paramètres!$A$24:$D$36,2) -> 100 | AG111: 0
A112: 2019 | B112: Bâtiment 10 | C112: 0 | D112: A sélectionner dans la liste déroulante | E112: 0 | F112: à encoder | G112: à encoder | T112: 0 | U112: 0 | V112: NA | W112: 0 | X112: 0 | Y112: =VLOOKUP(D112,Paramètres!$A$24:$D$36,3) -> 100 | Z112: =L112*Paramètres!$C$3+M112*Paramètres!$C$4+Encodage!N112*Paramètres!$C$5+Encodage!O112*Paramètres!$C$6+P112*Paramètres!$C$7 -> 0 | AA112: =VLOOKUP(D112,Paramètres!$A$24:$E$36,5) -> 0.85 | AB112: =IFERROR(Z112*(1-AA112)+(Z112*AA112*DJ!$D$2/VLOOKUP(Encodage!A112,DJ!$A$2:$D$14,4)),0) -> 0 | AC112: 0 | AD112: 0 | AE112: =VLOOKUP(D112,Paramètres!$A$24:$D$36,2) -> 100 | AG112: 0
A113: 2019 | B113: Bâtiment 11 | C113: 0 | D113: A sélectionner dans la liste déroulante | E113: 0 | F113: à encoder | G113: à encoder | T113: 0 | U113: 0 | V113: NA | W113: 0 | X113: 0 | Y113: =VLOOKUP(D113,Paramètres!$A$24:$D$36,3) -> 100 | Z113: =L113*Paramètres!$C$3+M113*Paramètres!$C$4+Encodage!N113*Paramètres!$C$5+Encodage!O113*Paramètres!$C$6+P113*Paramètres!$C$7 -> 0 | AA113: =VLOOKUP(D113,Paramètres!$A$24:$E$36,5) -> 0.85 | AB113: =IFERROR(Z113*(1-AA113)+(Z113*AA113*DJ!$D$2/VLOOKUP(Encodage!A113,DJ!$A$2:$D$14,4)),0) -> 0 | AC113: 0 | AD113: 0 | AE113: =VLOOKUP(D113,Paramètres!$A$24:$D$36,2) -> 100 | AG113: 0
A114: 2019 | B114: Bâtiment 12 | C114: 0 | D114: A sélectionner dans la liste déroulante | E114: 0 | F114: à encoder | G114: à encoder | T114: 0 | U114: 0 | V114: NA | W114: 0 | X114: 0 | Y114: =VLOOKUP(D114,Paramètres!$A$24:$D$36,3) -> 100 | Z114: =L114*Paramètres!$C$3+M114*Paramètres!$C$4+Encodage!N114*Paramètres!$C$5+Encodage!O114*Paramètres!$C$6+P114*Paramètres!$C$7 -> 0 | AA114: =VLOOKUP(D114,Paramètres!$A$24:$E$36,5) -> 0.85 | AB114: =IFERROR(Z114*(1-AA114)+(Z114*AA114*DJ!$D$2/VLOOKUP(Encodage!A114,DJ!$A$2:$D$14,4)),0) -> 0 | AC114: 0 | AD114: 0 | AE114: =VLOOKUP(D114,Paramètres!$A$24:$D$36,2) -> 100 | AG114: 0
A115: 2019 | B115: Total | C115: =SUM(C103:C114) -> 0 | H115: =SUM(H103:H114) -> 0 | I115: =SUM(I103:I114) -> 0 | J115: =SUM(J103:J114) -> 0 | K115: =SUM(K103:K114) -> 0 | L115: =SUM(L103:L114) -> 0 | M115: 0 | N115: 0 | O115: 0 | P115: 0 | Q115: 0 | R115: 0 | S115: 0 | U115: =SUM(U103:U114) -> 0 | X115: 0 | Y115: =VLOOKUP($D$5,Paramètres!$A$24:$D$36,3) ->  | Z115: =SUM(Z103:Z114) -> 0 | AB115: =SUM(AB103:AB114) -> 0 | AC115: 0 | AE115: =VLOOKUP($D$5,Paramètres!$A$24:$D$36,2) -> 
A117: =A102+1 -> 2020
A118: =A117 -> 2020 | B118: =B103 -> Bâtiment 1 | C118: 0 | D118: A sélectionner dans la liste déroulante | E118: 0 | F118: =F103 -> à encoder | G118: =G103 -> à encoder | T118: =IF(R118=0,,R118/R103-1) -> 0 | U118: =IF(H118<>0,H118,I118+J118) -> 0 | V118: =IFERROR(J118/U118,"NA") -> NA | W118: =IF(U118=0,0,U118/U103-1) -> 0 | X118: =IFERROR(U118/C118,0) -> 0 | Y118: =VLOOKUP(D118,Paramètres!$A$24:$D$36,3) -> 100 | Z118: =L118*Paramètres!$C$3+M118*Paramètres!$C$4+Encodage!N118*Paramètres!$C$5+Encodage!O118*Paramètres!$C$6+P118*Paramètres!$C$7 -> 0 | AA118: =VLOOKUP(D118,Paramètres!$A$24:$E$36,5) -> 0.85 | AB118: =IFERROR(Z118*(1-AA118)+(Z118*AA118*DJ!$D$2/VLOOKUP(Encodage!A118,DJ!$A$2:$D$14,4)),0) -> 0 | AC118: =IFERROR(AB118/C118,0) -> 0 | AD118: =IF(AB118=0,,AB118/AB103-1) -> 0 | AE118: =VLOOKUP(D118,Paramètres!$A$24:$D$36,2) -> 100 | AF118: =IFERROR(AC118/AC$13,"") ->  | AG118: =AB118*AC118 -> 0
A119: =A118 -> 2020 | B119: Bâtiment 2 | C119: 0 | D119: A sélectionner dans la liste déroulante | E119: 0 | F119: à encoder | G119: à encoder | T119: =IF(R119=0,,R119/R104-1) -> 0 | U119: 0 | V119: NA | W119: =IF(U119=0,0,U119/U104-1) -> 0 | X119: 0 | Y119: =VLOOKUP(D119,Paramètres!$A$24:$D$36,3) -> 100 | Z119: =L119*Paramètres!$C$3+M119*Paramètres!$C$4+Encodage!N119*Paramètres!$C$5+Encodage!O119*Paramètres!$C$6+P119*Paramètres!$C$7 -> 0 | AA119: =VLOOKUP(D119,Paramètres!$A$24:$E$36,5) -> 0.85 | AB119: =IFERROR(Z119*(1-AA119)+(Z119*AA119*DJ!$D$2/VLOOKUP(Encodage!A119,DJ!$A$2:$D$14,4)),0) -> 0 | AC119: 0 | AD119: =IF(AB119=0,,AB119/AB104-1) -> 0 | AE119: =VLOOKUP(D119,Paramètres!$A$24:$D$36,2) -> 100 | AG119: 0
A120: =A119 -> 2020 | B120: Bâtiment 3 | C120: 0 | D120: A sélectionner dans la liste déroulante | E120: 0 | F120: à encoder | G120: à encoder | T120: 0 | U120: 0 | V120: NA | W120: 0 | X120: 0 | Y120: =VLOOKUP(D120,Paramètres!$A$24:$D$36,3) -> 100 | Z120: =L120*Paramètres!$C$3+M120*Paramètres!$C$4+Encodage!N120*Paramètres!$C$5+Encodage!O120*Paramètres!$C$6+P120*Paramètres!$C$7 -> 0 | AA120: =VLOOKUP(D120,Paramètres!$A$24:$E$36,5) -> 0.85 | AB120: =IFERROR(Z120*(1-AA120)+(Z120*AA120*DJ!$D$2/VLOOKUP(Encodage!A120,DJ!$A$2:$D$14,4)),0) -> 0 | AC120: 0 | AD120: 0 | AE120: =VLOOKUP(D120,Paramètres!$A$24:$D$36,2) -> 100 | AG120: 0
A121: 2020 | B121: Bâtiment 4 | C121: 0 | D121: A sélectionner dans la liste déroulante | E121: 0 | F121: à encoder | G121: à encoder | T121: 0 | U121: 0 | V121: NA | W121: 0 | X121: 0 | Y121: =VLOOKUP(D121,Paramètres!$A$24:$D$36,3) -> 100 | Z121: =L121*Paramètres!$C$3+M121*Paramètres!$C$4+Encodage!N121*Paramètres!$C$5+Encodage!O121*Paramètres!$C$6+P121*Paramètres!$C$7 -> 0 | AA121: =VLOOKUP(D121,Paramètres!$A$24:$E$36,5) -> 0.85 | AB121: =IFERROR(Z121*(1-AA121)+(Z121*AA121*DJ!$D$2/VLOOKUP(Encodage!A121,DJ!$A$2:$D$14,4)),0) -> 0 | AC121: 0 | AD121: 0 | AE121: =VLOOKUP(D121,Paramètres!$A$24:$D$36,2) -> 100 | AG121: 0
A122: 2020 | B122: Bâtiment 5 | C122: 0 | D122: A sélectionner dans la liste déroulante | E122: 0 | F122: à encoder | G122: à encoder | T122: 0 | U122: 0 | V122: NA | W122: 0 | X122: 0 | Y122: =VLOOKUP(D122,Paramètres!$A$24:$D$36,3) -> 100 | Z122: =L122*Paramètres!$C$3+M122*Paramètres!$C$4+Encodage!N122*Paramètres!$C$5+Encodage!O122*Paramètres!$C$6+P122*Paramètres!$C$7 -> 0 | AA122: =VLOOKUP(D122,Paramètres!$A$24:$E$36,5) -> 0.85 | AB122: =IFERROR(Z122*(1-AA122)+(Z122*AA122*DJ!$D$2/VLOOKUP(Encodage!A122,DJ!$A$2:$D$14,4)),0) -> 0 | AC122: 0 | AD122: 0 | AE122: =VLOOKUP(D122,Paramètres!$A$24:$D$36,2) -> 100 | AG122: 0
A123: 2020 | B123: Bâtiment 6 | C123: 0 | D123: A sélectionner dans la liste déroulante | E123: 0 | F123: à encoder | G123: à encoder | T123: 0 | U123: 0 | V123: NA | W123: 0 | X123: 0 | Y123: =VLOOKUP(D123,Paramètres!$A$24:$D$36,3) -> 100 | Z123: =L123*Paramètres!$C$3+M123*Paramètres!$C$4+Encodage!N123*Paramètres!$C$5+Encodage!O123*Paramètres!$C$6+P123*Paramètres!$C$7 -> 0 | AA123: =VLOOKUP(D123,Paramètres!$A$24:$E$36,5) -> 0.85 | AB123: =IFERROR(Z123*(1-AA123)+(Z123*AA123*DJ!$D$2/VLOOKUP(Encodage!A123,DJ!$A$2:$D$14,4)),0) -> 0 | AC123: 0 | AD123: 0 | AE123: =VLOOKUP(D123,Paramètres!$A$24:$D$36,2) -> 100 | AG123: 0
A124: 2020 | B124: Bâtiment 7 | C124: 0 | D124: A sélectionner dans la liste déroulante | E124: 0 | F124: à encoder | G124: à encoder | T124: 0 | U124: 0 | V124: NA | W124: 0 | X124: 0 | Y124: =VLOOKUP(D124,Paramètres!$A$24:$D$36,3) -> 100 | Z124: =L124*Paramètres!$C$3+M124*Paramètres!$C$4+Encodage!N124*Paramètres!$C$5+Encodage!O124*Paramètres!$C$6+P124*Paramètres!$C$7 -> 0 | AA124: =VLOOKUP(D124,Paramètres!$A$24:$E$36,5) -> 0.85 | AB124: =IFERROR(Z124*(1-AA124)+(Z124*AA124*DJ!$D$2/VLOOKUP(Encodage!A124,DJ!$A$2:$D$14,4)),0) -> 0 | AC124: 0 | AD124: 0 | AE124: =VLOOKUP(D124,Paramètres!$A$24:$D$36,2) -> 100 | AG124: 0
A125: 2020 | B125: Bâtiment 8 | C125: 0 | D125: A sélectionner dans la liste déroulante | E125: 0 | F125: à encoder | G125: à encoder | T125: 0 | U125: 0 | V125: NA | W125: 0 | X125: 0 | Y125: =VLOOKUP(D125,Paramètres!$A$24:$D$36,3) -> 100 | Z125: =L125*Paramètres!$C$3+M125*Paramètres!$C$4+Encodage!N125*Paramètres!$C$5+Encodage!O125*Paramètres!$C$6+P125*Paramètres!$C$7 -> 0 | AA125: =VLOOKUP(D125,Paramètres!$A$24:$E$36,5) -> 0.85 | AB125: =IFERROR(Z125*(1-AA125)+(Z125*AA125*DJ!$D$2/VLOOKUP(Encodage!A125,DJ!$A$2:$D$14,4)),0) -> 0 | AC125: 0 | AD125: 0 | AE125: =VLOOKUP(D125,Paramètres!$A$24:$D$36,2) -> 100 | AG125: 0
A126: 2020 | B126: Bâtiment 9 | C126: 0 | D126: A sélectionner dans la liste déroulante | E126: 0 | F126: à encoder | G126: à encoder | T126: 0 | U126: 0 | V126: NA | W126: 0 | X126: 0 | Y126: =VLOOKUP(D126,Paramètres!$A$24:$D$36,3) -> 100 | Z126: =L126*Paramètres!$C$3+M126*Paramètres!$C$4+Encodage!N126*Paramètres!$C$5+Encodage!O126*Paramètres!$C$6+P126*Paramètres!$C$7 -> 0 | AA126: =VLOOKUP(D126,Paramètres!$A$24:$E$36,5) -> 0.85 | AB126: =IFERROR(Z126*(1-AA126)+(Z126*AA126*DJ!$D$2/VLOOKUP(Encodage!A126,DJ!$A$2:$D$14,4)),0) -> 0 | AC126: 0 | AD126: 0 | AE126: =VLOOKUP(D126,Paramètres!$A$24:$D$36,2) -> 100 | AG126: 0
A127: 2020 | B127: Bâtiment 10 | C127: 0 | D127: A sélectionner dans la liste déroulante | E127: 0 | F127: à encoder | G127: à encoder | T127: 0 | U127: 0 | V127: NA | W127: 0 | X127: 0 | Y127: =VLOOKUP(D127,Paramètres!$A$24:$D$36,3) -> 100 | Z127: =L127*Paramètres!$C$3+M127*Paramètres!$C$4+Encodage!N127*Paramètres!$C$5+Encodage!O127*Paramètres!$C$6+P127*Paramètres!$C$7 -> 0 | AA127: =VLOOKUP(D127,Paramètres!$A$24:$E$36,5) -> 0.85 | AB127: =IFERROR(Z127*(1-AA127)+(Z127*AA127*DJ!$D$2/VLOOKUP(Encodage!A127,DJ!$A$2:$D$14,4)),0) -> 0 | AC127: 0 | AD127: 0 | AE127: =VLOOKUP(D127,Paramètres!$A$24:$D$36,2) -> 100 | AG127: 0
A128: 2020 | B128: Bâtiment 11 | C128: 0 | D128: A sélectionner dans la liste déroulante | E128: 0 | F128: à encoder | G128: à encoder | T128: 0 | U128: 0 | V128: NA | W128: 0 | X128: 0 | Y128: =VLOOKUP(D128,Paramètres!$A$24:$D$36,3) -> 100 | Z128: =L128*Paramètres!$C$3+M128*Paramètres!$C$4+Encodage!N128*Paramètres!$C$5+Encodage!O128*Paramètres!$C$6+P128*Paramètres!$C$7 -> 0 | AA128: =VLOOKUP(D128,Paramètres!$A$24:$E$36,5) -> 0.85 | AB128: =IFERROR(Z128*(1-AA128)+(Z128*AA128*DJ!$D$2/VLOOKUP(Encodage!A128,DJ!$A$2:$D$14,4)),0) -> 0 | AC128: 0 | AD128: 0 | AE128: =VLOOKUP(D128,Paramètres!$A$24:$D$36,2) -> 100 | AG128: 0
A129: 2020 | B129: Bâtiment 12 | C129: 0 | D129: A sélectionner dans la liste déroulante | E129: 0 | F129: à encoder | G129: à encoder | T129: 0 | U129: 0 | V129: NA | W129: 0 | X129: 0 | Y129: =VLOOKUP(D129,Paramètres!$A$24:$D$36,3) -> 100 | Z129: =L129*Paramètres!$C$3+M129*Paramètres!$C$4+Encodage!N129*Paramètres!$C$5+Encodage!O129*Paramètres!$C$6+P129*Paramètres!$C$7 -> 0 | AA129: =VLOOKUP(D129,Paramètres!$A$24:$E$36,5) -> 0.85 | AB129: =IFERROR(Z129*(1-AA129)+(Z129*AA129*DJ!$D$2/VLOOKUP(Encodage!A129,DJ!$A$2:$D$14,4)),0) -> 0 | AC129: 0 | AD129: 0 | AE129: =VLOOKUP(D129,Paramètres!$A$24:$D$36,2) -> 100 | AG129: 0
A130: 2020 | B130: Total | C130: =SUM(C118:C129) -> 0 | H130: =SUM(H118:H129) -> 0 | I130: =SUM(I118:I129) -> 0 | J130: =SUM(J118:J129) -> 0 | K130: =SUM(K118:K129) -> 0 | L130: =SUM(L118:L129) -> 0 | M130: 0 | N130: 0 | O130: 0 | P130: 0 | Q130: 0 | R130: 0 | S130: 0 | U130: =SUM(U118:U129) -> 0 | X130: 0 | Y130: =VLOOKUP($D$5,Paramètres!$A$24:$D$36,3) ->  | Z130: =SUM(Z118:Z129) -> 0 | AB130: =SUM(AB118:AB129) -> 0 | AC130: 0 | AE130: =VLOOKUP($D$5,Paramètres!$A$24:$D$36,2) -> 

Sheet Resumé
B1: Evolution des consommations totales de tous les bâtiments
B3: Consommations | C3: =Encodage!D3 -> 2013 | D3: =C3+1 -> 2014 | E3: 2015 | F3: 2016 | G3: 2017 | H3: 2018 | I3: 2019 | J3: 2020
B4: Consommation Elec totale [kWh] | C4: =Encodage!$U25 -> 0 | D4: =Encodage!U40 -> 0 | E4: =Encodage!U55 -> 0 | F4: =Encodage!$U70 -> 0 | G4: =Encodage!$U85 -> 0 | H4: =Encodage!$U100 -> 0 | I4: =Encodage!$U115 -> 0 | J4: =Encodage!$U130 -> 0
B5: Cons. Elec heures pleines [kWh] | C5: =Encodage!$I25 -> 0 | D5: =Encodage!I40 -> 0 | E5: =Encodage!I55 -> 0 | F5: =Encodage!$I70 -> 0 | G5: =Encodage!$I85 -> 0 | H5: =Encodage!$I100 -> 0 | I5: =Encodage!$I115 -> 0 | J5: =Encodage!$I130 -> 0
B6: Cons. Elec heures creuses [kWh] | C6: =Encodage!$J25 -> 0 | D6: =Encodage!J40 -> 0 | E6: =Encodage!J55 -> 0 | F6: =Encodage!$J70 -> 0 | G6: =Encodage!$J85 -> 0 | H6: =Encodage!$J100 -> 0 | I6: =Encodage!$J115 -> 0 | J6: =Encodage!$J130 -> 0
B7: Cons. élect spécifique [kWh/m²] | C7: =IFERROR(Encodage!$X25,0) -> 0 | D7: =IFERROR(Encodage!$X40,0) -> 0 | E7: =IFERROR(Encodage!$X55,0) -> 0 | F7: =IFERROR(Encodage!$X70,0) -> 0 | G7: =IFERROR(Encodage!$X85,0) -> 0 | H7: =IFERROR(Encodage!$X100,0) -> 0 | I7: =IFERROR(Encodage!$X115,0) -> 0 | J7: =IFERROR(Encodage!$X130,0) -> 0
B8: ="Cons. moyenne du secteur (= "&C8&" kWh/m²)" ->  | C8: =VLOOKUP(Encodage!D5,Paramètres!$A$24:$D$36,3) ->  | D8: =$C$8 ->  | E8: =$C$8 -> 
B9: Consommation de combustibles [kWhi] | C9: =Encodage!$Z25 -> 0 | D9: =Encodage!Z40 -> 0 | E9: =Encodage!Z55 -> 0 | F9: =Encodage!$Z70 -> 0 | G9: =Encodage!$Z85 -> 0 | H9: =Encodage!$Z100 -> 0 | I9: =Encodage!$Z115 -> 0 | J9: =Encodage!$Z130 -> 0
B10: Cons. de combustible normalisé [kWhi] | C10: =Encodage!$AB25 -> 0 | D10: =Encodage!$AB40 -> 0 | E10: =Encodage!$AB55 -> 0 | F10: =Encodage!$AB70 -> 0 | G10: =Encodage!$AB85 -> 0 | H10: =Encodage!$AB100 -> 0 | I10: =Encodage!$AB115 -> 0 | J10: =Encodage!$AB130 -> 0
B11: Cons. combustible spécifique normalisée [kWhi/m²] | C11: =IFERROR(Encodage!$AC25,0) -> 0 | D11: =IFERROR(Encodage!AC40,0) -> 0 | E11: =IFERROR(Encodage!AC55,0) -> 0 | F11: =IFERROR(Encodage!$AC70,0) -> 0 | G11: =IFERROR(Encodage!$AC85,0) -> 0 | H11: =IFERROR(Encodage!$AC100,0) -> 0 | I11: =IFERROR(Encodage!$AC115,0) -> 0 | J11: =IFERROR(Encodage!$AC130,0) -> 0
B12: ="Consommation moyenne du secteur (= "&C12&" kWh/m²)" ->  | C12: =VLOOKUP(Encodage!D5,Paramètres!$A$24:$D$36,2) ->  | D12: =$C$12 -> 
B13: Degrés jours (16,5/16,5) | C13: =VLOOKUP(C3,DJ!$A$3:$D$14,4) -> 2537 | D13: =VLOOKUP(D3,DJ!$A$3:$D$14,4) -> 1828 | E13: =VLOOKUP(E3,DJ!$A$3:$D$14,4) -> 2112 | F13: =VLOOKUP(F3,DJ!$A$3:$D$14,4) -> 0 | G13: =VLOOKUP(G3,DJ!$A$3:$D$14,4) -> 0 | H13: =VLOOKUP(H3,DJ!$A$3:$D$14,4) -> 0 | I13: =VLOOKUP(I3,DJ!$A$3:$D$14,4) -> 0 | J13: =VLOOKUP(J3,DJ!$A$3:$D$14,4) -> 0
B14: Eau (m³) | C14: =Encodage!$R25 -> 0 | D14: =Encodage!R40 -> 0 | E14: =Encodage!R55 -> 0 | F14: =Encodage!$R70 -> 0 | G14: =Encodage!$R85 -> 0 | H14: =Encodage!$R100 -> 0 | I14: =Encodage!$R115 -> 0 | J14: =Encodage!$R130 -> 0
B15: Coût total elec (€) | C15: =Encodage!$K$25 -> 0 | D15: =Encodage!$K$40 -> 0 | E15: =Encodage!$K$55 -> 0 | F15: =Encodage!$K$70 -> 0 | G15: =Encodage!$K$85 -> 0 | H15: =Encodage!$K$100 -> 0 | I15: =Encodage!K115 -> 0 | J15: =Encodage!$K$130 -> 0
B16: Coût total combustible (€) | C16: =Encodage!$Q$25 -> 0 | D16: =Encodage!$Q$40 -> 0 | E16: =Encodage!$Q$55 -> 0 | F16: =Encodage!$Q$70 -> 0 | G16: =Encodage!$Q$85 -> 0 | H16: =Encodage!$Q$100 -> 0 | I16: =Encodage!Q116 -> 0 | J16: =Encodage!$Q$130 -> 0
B17: Coût total eau (€) | C17: =Encodage!$S$25 -> 0 | D17: =Encodage!$S$40 -> 0 | E17: =Encodage!$S$55 -> 0 | F17: =Encodage!$S$70 -> 0 | G17: =Encodage!$S$85 -> 0 | H17: =Encodage!$S$100 -> 0 | I17: =Encodage!S117 -> 0 | J17: =Encodage!$S$130 -> 0
B19: Evolution par rapport à l’année du 1er encodage | C19: =C3 -> 2013 | D19: 2014 | E19: 2015 | F19: 2016 | G19: 2017 | H19: 2018 | I19: 2019 | J19: 2020
B20: =B4 -> Consommation Elec totale [kWh] | C20: =IFERROR(C4/$C4,0) -> 0 | D20: =IFERROR(D4/$C4,0) -> 0 | E20: 0 | F20: 0 | G20: 0 | H20: 0 | I20: 0 | J20: 0
B21: =B5 -> Cons. Elec heures pleines [kWh] | C21: =IFERROR(C5/$C5,0) -> 0 | D21: 0 | E21: 0 | F21: 0 | G21: 0 | H21: 0 | I21: 0 | J21: 0
B22: =B6 -> Cons. Elec heures creuses [kWh] | C22: =IFERROR(C6/$C6,0) -> 0 | D22: =IFERROR(D6/$C6,0) -> 0 | E22: 0 | F22: 0 | G22: 0 | H22: 0 | I22: 0 | J22: 0
B23: =B9 -> Consommation de combustibles [kWhi] | C23: =IFERROR(C9/$C9,0) -> 0 | D23: =IFERROR(D9/$C9,0) -> 0 | E23: 0 | F23: 0 | G23: 0 | H23: 0 | I23: 0 | J23: 0
B24: =B10 -> Cons. de combustible normalisé [kWhi] | C24: =IFERROR(C10/$C10,0) -> 0 | D24: =IFERROR(D10/$C10,0) -> 0 | E24: 0 | F24: 0 | G24: 0 | H24: 0 | I24: 0 | J24: 0
B25: =B11 -> Cons. combustible spécifique normalisée [kWhi/m²] | C25: =IFERROR(C11/$C11,0) -> 0 | D25: =IFERROR(D11/$C11,0) -> 0 | E25: 0 | F25: 0 | G25: 0 | H25: 0 | I25: 0 | J25: 0
B26: =B14 -> Eau (m³) | C26: =IFERROR(C14/$C14,0) -> 0 | D26: =IFERROR(D14/$C14,0) -> 0 | E26: 0 | F26: 0 | G26: 0 | H26: 0 | I26: 0 | J26: 0
B27: Coût total elec | C27: =IFERROR(C15/$C15,0) -> 0 | D27: 0 | E27: 0 | F27: 0 | G27: 0 | H27: 0 | I27: 0 | J27: 0
B28: Coût total combustible | C28: =IFERROR(C16/$C16,0) -> 0 | D28: 0 | E28: 0 | F28: 0 | G28: 0 | H28: 0 | I28: 0 | J28: 0
B29: Coût total eau | C29: =IFERROR(C17/$C17,0) -> 0 | D29: 0 | E29: 0 | F29: 0 | G29: 0 | H29: 0 | I29: 0 | J29: 0
B31: Evolution par rapport à l'année précédente | C31: =C19 -> 2013 | D31: 2014 | E31: 2015 | F31: 2016 | G31: 2017 | H31: 2018 | I31: 2019 | J31: 2020
B32: =B20 -> Consommation Elec totale [kWh] | D32: =IFERROR(IF(D20=0,0,D20/C20-1),"") -> 0 | E32: 0 | F32: 0 | G32: 0 | H32: 0 | I32: 0 | J32: 0
B33: Cons. Elec heures pleines [kWh] | D33: 0 | E33: 0 | F33: 0 | G33: 0 | H33: 0 | I33: 0 | J33: 0
B34: Cons. Elec heures creuses [kWh] | D34: 0 | E34: 0 | F34: 0 | G34: 0 | H34: 0 | I34: 0 | J34: 0
B35: Consommation de combustibles [kWhi] | D35: 0 | E35: 0 | F35: 0 | G35: 0 | H35: 0 | I35: 0 | J35: 0
B36: Cons. de combustible normalisé [kWhi] | D36: 0 | E36: 0 | F36: 0 | G36: 0 | H36: 0 | I36: 0 | J36: 0
B37: Cons. combustible spécifique normalisée [kWhi/m²] | D37: 0 | E37: 0 | F37: 0 | G37: 0 | H37: 0 | I37: 0 | J37: 0
B38: Eau (m³) | D38: =IFERROR(IF(D26=0,0,D26/C26-1),"") -> 0 | E38: 0 | F38: 0 | G38: 0 | H38: 0 | I38: 0 | J38: 0
B39: Coût total elec | D39: =IFERROR(IF(D27=0,0,D27/C27-1),"") -> 0 | E39: =IFERROR(IF(E27=0,0,E27/D27-1),"") -> 0 | F39: =IFERROR(IF(F27=0,0,F27/E27-1),"") -> 0 | G39: =IFERROR(IF(G27=0,0,G27/F27-1),"") -> 0 | H39: =IFERROR(IF(H27=0,0,H27/G27-1),"") -> 0 | I39: =IFERROR(IF(I27=0,0,I27/H27-1),"") -> 0 | J39: =IFERROR(IF(J27=0,0,J27/I27-1),"") -> 0
B40: Coût total combustible | D40: 0 | E40: 0 | F40: 0 | G40: 0 | H40: 0 | I40: 0 | J40: 0
B41: Coût total eau | D41: 0 | E41: 0 | F41: 0 | G41: 0 | H41: 0 | I41: 0 | J41: 0

Sheet G_Elec
A82: Consommation d'élec par bâtiment | G82: =$A$105 -> Consommation d'élec par bâtiment | L82: =$A$105 -> Consommation d'élec par bâtiment | Q82: =$A$105 -> Consommation d'élec par bâtiment
A83: =Encodage!A12 -> 2013 | G83: =Encodage!A27 -> 2014 | L83: =Encodage!A42 -> 2015 | Q83: =Encodage!A57 -> 2016
A105: Consommation d'élec par bâtiment | G105: =$A$105 -> Consommation d'élec par bâtiment | L105: =$A$105 -> Consommation d'élec par bâtiment | Q105: =$A$105 -> Consommation d'élec par bâtiment
A106: =Encodage!A72 -> 2017 | G106: =Encodage!A87 -> 2018 | L106: =Encodage!A102 -> 2019 | Q106: =Encodage!A117 -> 2020

Sheet Feuil1 (hidden)

Sheet G_Combustible

Sheet G_Eau

Sheet Paramètres (hidden)
A1: Coefficients de conversion:
A2: Electricité | B2: kWh | C2: 2.5 | D2: ="kWhp"&"/"&B2 -> kWhp/kWh
A3: gaz naturel | B3: kWhs | C3: 0.903 | D3: kWhp/kWhs
A4: gasoil | B4: litre | C4: =36500/3600 -> 10.13888889 | D4: kWhp/litre
A5: propane | B5: m³ | C5: 6.555555556 | D5: kWhp/m³
A6: pellets | B6: kg | C6: 4 | D6: kWhp/kg
A7: Autres | B7: kWh | C7: 1 | D7: kWhp/kWh
A9: Usage énergétique
A10: Chauffage
A11: Eau chaude sanitaire (ECS)
A12: Cuisine
A13: Ch + ECS
A14: Ch + cuisine
A15: ECS + Cuisine
A16: Ch + ECS + Cuisine
A17: cuisine collective
A18: air-conditionné
A19: chauffage électrique
A20: piscine
A22: Consommation moyenne du secteur (2012)
B23: Chauffage | C23: Elec | E23: Rapport Normalisation
A24: =DJ!A17 -> A sélectionner dans la liste déroulante | B24: 100 | C24: 100 | D24: kWh/m² | E24: =DJ!B17 -> 0.85
A25: =DJ!A18 -> Accueil de jour | B25: 0 | C25: 0 | D25: kWh/m² | E25: =DJ!B18 -> 0.85
A26: =DJ!A19 -> Bureau privé HT | B26: 102 | C26: 138 | D26: kWh/m² | E26: =DJ!B19 -> 0.85
A27: =DJ!A20 -> Bureau public HT | B27: 165 | C27: 65 | D27: kWh/m² | E27: =DJ!B20 -> 0.85
A28: =DJ!A21 -> Centre d’insertion socio-professionnel | B28: 0 | C28: 0 | D28: kWh/m² | E28: =DJ!B21 -> 0.85
A29: =DJ!A22 -> Crèche | B29: 0 | C29: 0 | D29: kWh/m² | E29: =DJ!B22 -> 0.85
A30: =DJ!A23 -> École | B30: 143 | C30: 26 | D30: kWh/m² | E30: =DJ!B23 -> 0.85
A31: =DJ!A24 -> Entreprise de travail adapté | B31: 0 | C31: 0 | D31: kWh/m² | E31: =DJ!B24 -> 0.85
A32: =DJ!A25 -> Etablissement culturel | B32: 177 | C32: 59 | D32: kWh/m² | E32: =DJ!B25 -> 0.85
A33: =DJ!A26 -> Etablissement sportif | B33: 150 | C33: 50 | D33: kWh/m² | E33: =DJ!B26 -> 0.85
A34: =DJ!A27 -> Hébergement | B34: 199 | C34: 72 | D34: kWh/m² | E34: =DJ!B27 -> 0.7
A35: =DJ!A28 -> Hôpitaux | B35: 194 | C35: 122 | D35: kWh/m² | E35: =DJ!B28 -> 0.7
A36: =DJ!A29 -> autre | B36: 0 | C36: 0 | D36: kWh/m² | E36: =DJ!B29 -> 0.85
A38: Energies renouvelables
A39: A sélectionner dans la liste déroulante
A40: o Biomasse sèche
A41: o Biomasse humide
A42: o Cogénération Biomasse
A43: o Solaire photovoltaïque
A44: o Solaire thermique
A45: o Eolien
A46: o Hydroélectricité
A47: o Géothermie profonde comme utilisateur
A48: o Pompe à Chaleur
A52: Secteur
A53: Hébergement
A54: Accueil de jour
A55: Bureau
A56: Crèche
A57: École
A58: Etablissement sportif
A59: Etablissement culturel
A60: Entreprise de travail adapté
A61: Centre d’insertion socio-professionnel
A62: autre

Sheet DJ
A1: Degrés jours | B1: 15/15 | C1: 16,5/16,5 | D1: =IF(Encodage!$D$4=$B$1,B1,C1) -> 16,5/16,5
A2: degré jour normaux | B2: 1913 | C2: 2301 | D2: =IF(Encodage!$D$4=$B$1,B2,C2) -> 2301 | F2: Les degrés jours normaux sont la moyenne des degrés jours des 30 dernières années (de 1986 à 2015). Cette moyenne est revue par l'IRM tous les 5 ans
A3: 2009 | B3: 1819.7 | C3: 2212 | D3: =IF(Encodage!$D$4=$B$1,B3,C3) -> 2212
A4: 2010 | B4: 2309 | C4: 2703 | D4: =IF(Encodage!$D$4=$B$1,B4,C4) -> 2703
A5: 2011 | B5: 1514.5 | C5: 1928 | D5: =IF(Encodage!$D$4=$B$1,B5,C5) -> 1928
A6: 2012 | B6: 1914.7 | C6: 2327 | D6: =IF(Encodage!$D$4=$B$1,B6,C6) -> 2327
A7: 2013 | B7: 2137.7 | C7: 2537 | D7: =IF(Encodage!$D$4=$B$1,B7,C7) -> 2537
A8: 2014 | B8: 1424.1 | C8: 1828 | D8: =IF(Encodage!$D$4=$B$1,B8,C8) -> 1828
A9: 2015 | B9: 1688.3 | C9: 2112 | D9: =IF(Encodage!$D$4=$B$1,B9,C9) -> 2112
A10: 2016 | D10: =IF(Encodage!$D$4=$B$1,B10,C10) -> 0
A11: 2017 | D11: =IF(Encodage!$D$4=$B$1,B11,C11) -> 0
A12: 2018 | D12: =IF(Encodage!$D$4=$B$1,B12,C12) -> 0
A13: 2019 | D13: =IF(Encodage!$D$4=$B$1,B13,C13) -> 0
A14: 2020 | D14: =IF(Encodage!$D$4=$B$1,B14,C14) -> 0
A16: Rapport Normalisation
A17: A sélectionner dans la liste déroulante | B17: 0.85
A18: Accueil de jour | B18: 0.85
A19: Bureau privé HT | B19: 0.85
A20: Bureau public HT | B20: 0.85
A21: Centre d’insertion socio-professionnel | B21: 0.85
A22: Crèche | B22: 0.85
A23: École | B23: 0.85
A24: Entreprise de travail adapté | B24: 0.85
A25: Etablissement culturel | B25: 0.85
A26: Etablissement sportif | B26: 0.85
A27: Hébergement | B27: 0.7
A28: Hôpitaux | B28: 0.7
A29: autre | B29: 0.85
